{"text_format":"1","workbook":"xlsx","n_sheets":6,"sheets":["Auswahl","Berechnung","Einstellungen","DatenGeraete","Translation","BilderGeraete"],"not_rendered":{"charts":0,"images":42,"macros":1,"external_links":0,"defined_names":6,"comments":2,"pivot_tables":0},"unopened":[],"bounds":{"document_bytes":16777216,"sheet_cells":100000,"rows_first":2000,"rows_last":500,"rows_between":2000,"halvings":0,"cell_chars":16384,"cell_head_chars":4096},"cells_cut":0,"cells_raw":0,"read":"whole","date_system":"1900"}

{"sheet":"Auswahl","index":0,"n_rows":109,"n_cols":38,"rows_kept":109,"cut":false,"hidden":false,"merged":[[25,1,26,2],[36,1,37,2],[40,1,41,2],[4,1,6,6],[4,40,5,42],[4,43,5,44],[9,1,10,2],[13,1,14,2],[17,1,18,2],[21,1,22,2],[7,8,7,17],[7,19,7,28],[7,30,7,39],[4,8,6,17],[4,19,6,28],[4,30,6,39],[29,8,32,16],[29,30,32,38],[29,19,32,27],[108,37,109,39],[104,34,105,38],[95,30,96,32],[74,19,75,23],[74,24,75,27],[68,30,69,34],[70,30,71,34],[70,35,71,38],[72,30,73,34],[72,35,73,38],[74,30,75,34],[74,35,75,38],[68,35,69,38],[72,19,73,23],[72,24,73,27],[101,36,102,38],[68,19,69,23],[68,24,69,27],[70,19,71,23],[95,33,96,35],[95,36,96,38],[77,23,78,27],[77,34,78,38],[99,30,100,32],[99,33,100,35],[99,36,100,38],[101,8,102,10],[97,8,98,10],[97,11,98,13],[97,14,98,16],[97,19,98,21],[97,22,98,24],[97,25,98,27],[97,30,98,32],[97,33,98,35],[97,36,98,38],[101,11,102,13],[101,14,102,16],[101,19,102,21],[101,22,102,24],[101,25,102,27],[101,30,102,32],[101,33,102,35],[99,8,100,10],[99,11,100,13],[99,14,100,16],[99,19,100,21],[60,24,61,27],[33,19,36,27],[37,19,40,27],[41,19,44,27],[45,19,48,27],[57,19,58,23],[87,2,88,2],[91,2,92,2],[106,1,106,2],[99,25,100,27],[99,2,100,2],[104,12,105,16],[104,23,105,27],[95,8,96,10],[95,11,96,13],[95,14,96,16],[95,19,96,21],[95,22,96,24],[95,25,96,27],[99,22,100,24],[95,2,96,2],[81,37,82,39],[64,2,65,2],[68,2,69,2],[72,2,73,2],[57,35,58,38],[60,30,61,34],[60,35,61,38],[33,30,36,38],[60,13,61,16],[57,8,58,12],[41,8,44,16],[37,8,40,16],[74,8,75,12],[74,13,75,16],[63,24,64,27],[70,8,71,12],[70,13,71,16],[70,24,71,27],[60,2,61,2],[53,26,54,28],[72,8,73,12],[72,13,73,16],[60,8,61,12],[57,13,58,16],[3,46,3,48],[3,37,3,39],[49,34,50,38],[49,23,50,27],[49,12,50,16],[37,30,40,38],[41,30,44,38],[45,30,48,38],[79,1,79,2],[77,12,78,16],[63,19,64,23],[63,35,64,38],[53,37,54,39],[57,30,58,34],[33,8,36,16],[63,30,64,34],[63,8,64,12],[63,13,64,16],[68,8,69,12],[68,13,69,16],[45,8,48,16],[53,15,54,17],[57,24,58,27],[60,19,61,23]]}
[null,{"$f":"Translation!A3","v":"DHW Unit selector"}]
[]
[]
[]
[null,{"$f":"Translation!A5","v":"System selection"},null,null,null,null,null,null,{"$f":"Berechnung!B82&\" \"&Berechnung!B81","v":"DHA 4/8 L Multipoint"},null,null,null,null,null,null,null,null,null,null,{"$f":"Berechnung!C82&\" \"&Berechnung!C81","v":"DHC 8 Multipoint"},null,null,null,null,null,null,null,null,null,null,{"$f":"Berechnung!D82&\" \"&Berechnung!D81","v":"DHC-E 8/10 Multipoint"}]
[]
[]
[null,null,null,null,null,null,null,null,{"$f":"Berechnung!B80","v":"ArtNr. 73716"},null,null,null,null,null,null,null,null,null,null,{"$f":"Berechnung!C80","v":"ArtNr. 73481"},null,null,null,null,null,null,null,null,null,null,{"$f":"Berechnung!D80","v":"ArtNr. 224201"}]
[]
[null,{"$f":"Translation!A6","v":"Inlet temperature"}]
[]
[]
[]
[null,{"$f":"Translation!A59","v":"Outlet temperature"}]
[]
[]
[]
[null,{"$f":"Translation!A58","v":"Maximum flow"}]
[]
[]
[]
[null,{"$f":"Translation!A7","v":"No. of persons"}]
[]
[]
[]
[null,{"$f":"Translation!A9","v":"Draw-off point"}]
[]
[]
[]
[]
[]
[]
[]
[]
[]
[]
[null,{"$f":"Translation!A8","v":"Power supply"}]
[]
[]
[]
[null,{"$f":"Translation!A12","v":"Quality standards"}]
[]
[]
[]
[]
[]
[]
[]
[]
[]
[]
[]
[]
[null,null,null,null,null,null,null,null,null,null,null,null,null,null,null,{"$f":"IF(Berechnung!C78=999,AL54,\"\")","v":""},null,null,null,null,null,null,null,null,null,null,{"$f":"IF(Berechnung!D78=999,AL54,\"\")","v":""},null,null,null,null,null,null,null,null,null,null,"IMT/AD v1.01"]
[]
[]
[]
[null,null,null,null,null,null,null,null,{"$f":"IF(Berechnung!#REF!=0,\"\",Translation!#REF!)","v":{"$error":"#REF!"}},null,null,null,null,{"$f":"Berechnung!$C$98","v":0},null,null,null,null,null,{"$f":"IF(Berechnung!#REF!=0,\"\",Translation!#REF!)","v":{"$error":"#REF!"}},null,null,null,null,{"$f":"Berechnung!$D$98","v":0},null,null,null,null,null,{"$f":"IF(Berechnung!$E$100=0,\"\",Translation!#REF!)","v":""},null,null,null,null,{"$f":"Berechnung!$E$102","v":0}]
[]
[]
[null,null,{"$f":"#REF!","v":{"$error":"#REF!"}},null,null,null,null,null,{"$f":"IF(Berechnung!#REF!=0,\"\",Translation!#REF!)","v":{"$error":"#REF!"}},null,null,null,null,{"$f":"IF(Berechnung!#REF!=0,\"\",FIXED(Berechnung!$C$139,0)&\" €\")","v":{"$error":"#REF!"}},null,null,null,null,null,{"$f":"IF(Berechnung!#REF!=0,\"\",Translation!#REF!)","v":{"$error":"#REF!"}},null,null,null,null,{"$f":"IF(Berechnung!#REF!=0,\"\",FIXED(Berechnung!$D$139,0)&\" €\")","v":{"$error":"#REF!"}},null,null,null,null,null,{"$f":"IF(Berechnung!$E$100=0,\"\",Translation!#REF!)","v":""},null,null,null,null,{"$f":"IF(Berechnung!$E$100=0,\"\",FIXED(Berechnung!$E$139,0)&\" €\")","v":""}]
[]
[]
[null,null,null,null,null,null,null,null,{"$f":"IF(Berechnung!#REF!=0,\"\",Translation!#REF!)","v":{"$error":"#REF!"}},null,null,null,null,{"$f":"IF(Berechnung!#REF!=0,\"\",FIXED(Berechnung!$C$138,0)&\" €\")","v":{"$error":"#REF!"}},null,null,null,null,null,{"$f":"IF(Berechnung!#REF!=0,\"\",Translation!#REF!)","v":{"$error":"#REF!"}},null,null,null,null,{"$f":"IF(Berechnung!#REF!=0,\"\",FIXED(Berechnung!$D$138,0)&\" €\")","v":{"$error":"#REF!"}},null,null,null,null,null,{"$f":"IF(Berechnung!$E$100=0,\"\",Translation!#REF!)","v":""},null,null,null,null,{"$f":"IF(Berechnung!$E$100=0,\"\",FIXED(Berechnung!$E$138,0)&\" €\")","v":""}]
[null,null,{"$f":"#REF!","v":{"$error":"#REF!"}}]
[]
[]
[]
[null,null,{"$f":"B41","v":"Quality standards"},null,null,null,null,null,{"$f":"IF(Berechnung!#REF!=0,\"\",Translation!#REF!)","v":{"$error":"#REF!"}},null,null,null,null,{"$f":"IF(Berechnung!#REF!=0,\"\",FIXED(Berechnung!$C$140,0)&\" \"&Translation!$A$30)","v":{"$error":"#REF!"}},null,null,null,null,null,{"$f":"IF(Berechnung!#REF!=0,\"\",Translation!#REF!)","v":{"$error":"#REF!"}},null,null,null,null,{"$f":"IF(Berechnung!#REF!=0,\"\",FIXED(Berechnung!$D$140,0)&\" \"&Translation!$A$30)","v":{"$error":"#REF!"}},null,null,null,null,null,{"$f":"IF(Berechnung!$E$100=0,\"\",Translation!#REF!)","v":""},null,null,null,null,{"$f":"IF(Berechnung!$E$100=0,\"\",FIXED(Berechnung!$E$140,0)&\" \"&Translation!$A$30)","v":""}]
[]
[null,null,null,null,null,null,null,null,{"$f":"IF(Berechnung!#REF!=0,\"\",Translation!$A$23)","v":{"$error":"#REF!"}},null,null,null,null,{"$f":"IF(Berechnung!#REF!=0,\"\",FIXED(Berechnung!$C$136/1000,1)&\" \"&Translation!$A$24)","v":{"$error":"#REF!"}},null,null,null,null,null,{"$f":"IF(Berechnung!#REF!=0,\"\",Translation!$A$23)","v":{"$error":"#REF!"}},null,null,null,null,{"$f":"IF(Berechnung!#REF!=0,\"\",FIXED(Berechnung!$D$136/1000,1)&\" \"&Translation!$A$24)","v":{"$error":"#REF!"}},null,null,null,null,null,{"$f":"IF(Berechnung!$E$100=0,\"\",Translation!$A$23)","v":""},null,null,null,null,{"$f":"IF(Berechnung!$E$100=0,\"\",FIXED(Berechnung!$E$136/1000,1)&\" \"&Translation!$A$24)","v":""}]
[]
[null,null,{"$f":"B29","v":0},null,null,null,null,null,{"$f":"IF(Berechnung!#REF!=0,\"\",Translation!$A$22)","v":{"$error":"#REF!"}},null,null,null,null,{"$f":"IF(Berechnung!#REF!=0,\"\",FIXED(Berechnung!$C$137,0)&\" \"&Translation!$A$25)","v":{"$error":"#REF!"}},null,null,null,null,null,{"$f":"IF(Berechnung!#REF!=0,\"\",Translation!$A$22)","v":{"$error":"#REF!"}},null,null,null,null,{"$f":"IF(Berechnung!#REF!=0,\"\",FIXED(Berechnung!$D$137,0)&\" \"&Translation!$A$25)","v":{"$error":"#REF!"}},null,null,null,null,null,{"$f":"IF(Berechnung!$E$100=0,\"\",Translation!$A$22)","v":""},null,null,null,null,{"$f":"IF(Berechnung!$E$100=0,\"\",FIXED(Berechnung!$E$137,0)&\" \"&Translation!$A$25)","v":""}]
[]
[null,null,null,null,null,null,null,null,{"$f":"IF(Berechnung!#REF!=0,\"\",Translation!$A$26)","v":{"$error":"#REF!"}},null,null,null,null,{"$f":"IF(Berechnung!#REF!=0,\"\",FIXED(Berechnung!$C$141,0)&\" \"&Translation!$A$27)","v":{"$error":"#REF!"}},null,null,null,null,null,{"$f":"IF(Berechnung!#REF!=0,\"\",Translation!$A$26)","v":{"$error":"#REF!"}},null,null,null,null,{"$f":"IF(Berechnung!#REF!=0,\"\",FIXED(Berechnung!$D$141,0)&\" \"&Translation!$A$27)","v":{"$error":"#REF!"}},null,null,null,null,null,{"$f":"IF(Berechnung!$E$100=0,\"\",Translation!$A$26)","v":""},null,null,null,null,{"$f":"IF(Berechnung!$E$100=0,\"\",FIXED(Berechnung!$E$141,0)&\" \"&Translation!$A$27)","v":""}]
[]
[]
[null,null,null,null,null,null,null,null,null,null,null,null,{"$f":"IF(Berechnung!$C$97=FALSE,\"\",HYPERLINK(Berechnung!$C$99,Translation!$A$10))","v":""},null,null,null,null,null,null,null,null,null,null,{"$f":"IF(Berechnung!$D$97=FALSE,\"\",HYPERLINK(Berechnung!$D$99,Translation!$A$10))","v":""},null,null,null,null,null,null,null,null,null,null,{"$f":"IF(Berechnung!$E$99=FALSE,\"\",HYPERLINK(Berechnung!$E$103,Translation!$A$10))","v":""}]
[]
[]
[]
[null,null,null,null,null,null,null,null,null,null,null,null,null,null,null,null,null,null,null,null,null,null,null,null,null,null,null,null,null,null,null,null,null,null,null,null,null,"IMT/IH v1.07"]
[]
[]
[]
[]
[]
[null,null,{"$f":"#REF!","v":{"$error":"#REF!"}}]
[]
[]
[]
[null,null,{"$f":"#REF!","v":{"$error":"#REF!"}}]
[]
[]
[]
[null,null,{"$f":"B41","v":"Quality standards"},null,null,null,null,null,{"$f":"IF(Berechnung!#REF!=\"\",\"\",VLOOKUP(Berechnung!#REF!,#REF!,4,FALSE))","v":{"$error":"#REF!"}},null,null,{"$f":"IF(Berechnung!$C$111=\"\",\"\",VLOOKUP(Berechnung!$C$111,#REF!,4,FALSE))","v":""},null,null,{"$f":"IF(Berechnung!$C$112=\"\",\"\",VLOOKUP(Berechnung!$C$112,#REF!,4,FALSE))","v":""},null,null,null,null,{"$f":"IF(Berechnung!#REF!=\"\",\"\",VLOOKUP(Berechnung!#REF!,#REF!,4,FALSE))","v":{"$error":"#REF!"}},null,null,{"$f":"IF(Berechnung!$D$111=\"\",\"\",VLOOKUP(Berechnung!$D$111,#REF!,4,FALSE))","v":""},null,null,{"$f":"IF(Berechnung!$D$112=\"\",\"\",VLOOKUP(Berechnung!$D$112,#REF!,4,FALSE))","v":""},null,null,null,null,{"$f":"IF(Berechnung!#REF!=\"\",\"\",VLOOKUP(Berechnung!#REF!,#REF!,4,FALSE))","v":{"$error":"#REF!"}},null,null,{"$f":"IF(Berechnung!$E$111=\"\",\"\",VLOOKUP(Berechnung!$E$111,#REF!,4,FALSE))","v":""},null,null,{"$f":"IF(Berechnung!$E$112=\"\",\"\",VLOOKUP(Berechnung!$E$112,#REF!,4,FALSE))","v":""}]
[]
[null,null,null,null,null,null,null,null,{"$f":"IF(Berechnung!#REF!=\"\",\"\",VLOOKUP(Berechnung!#REF!,#REF!,5,FALSE))","v":{"$error":"#REF!"}},null,null,{"$f":"IF(Berechnung!$C$111=\"\",\"\",VLOOKUP(Berechnung!$C$111,#REF!,5,FALSE))","v":""},null,null,{"$f":"IF(Berechnung!$C$112=\"\",\"\",VLOOKUP(Berechnung!$C$112,#REF!,5,FALSE))","v":""},null,null,null,null,{"$f":"IF(Berechnung!#REF!=\"\",\"\",VLOOKUP(Berechnung!#REF!,#REF!,5,FALSE))","v":{"$error":"#REF!"}},null,null,{"$f":"IF(Berechnung!$D$111=\"\",\"\",VLOOKUP(Berechnung!$D$111,#REF!,5,FALSE))","v":""},null,null,{"$f":"IF(Berechnung!$D$112=\"\",\"\",VLOOKUP(Berechnung!$D$112,#REF!,5,FALSE))","v":""},null,null,null,null,{"$f":"IF(Berechnung!#REF!=\"\",\"\",VLOOKUP(Berechnung!#REF!,#REF!,5,FALSE))","v":{"$error":"#REF!"}},null,null,{"$f":"IF(Berechnung!$E$111=\"\",\"\",VLOOKUP(Berechnung!$E$111,#REF!,5,FALSE))","v":""},null,null,{"$f":"IF(Berechnung!$E$112=\"\",\"\",VLOOKUP(Berechnung!$E$112,#REF!,5,FALSE))","v":""}]
[]
[null,null,{"$f":"B29","v":0},null,null,null,null,null,{"$f":"IF(Berechnung!#REF!=\"\",\"\",Translation!$A$31&\" \"&Berechnung!#REF!)","v":{"$error":"#REF!"}},null,null,{"$f":"IF(Berechnung!$C$111=\"\",\"\",Translation!$A$31&\" \"&Berechnung!$C$111)","v":""},null,null,{"$f":"IF(Berechnung!$C$112=\"\",\"\",Translation!$A$31&\" \"&Berechnung!$C$112)","v":""},null,null,null,null,{"$f":"IF(Berechnung!#REF!=\"\",\"\",Translation!$A$31&\" \"&Berechnung!#REF!)","v":{"$error":"#REF!"}},null,null,{"$f":"IF(Berechnung!$D$111=\"\",\"\",Translation!$A$31&\" \"&Berechnung!$D$111)","v":""},null,null,{"$f":"IF(Berechnung!$D$112=\"\",\"\",Translation!$A$31&\" \"&Berechnung!$D$112)","v":""},null,null,null,null,{"$f":"IF(Berechnung!#REF!=\"\",\"\",Translation!$A$31&\" \"&Berechnung!#REF!)","v":{"$error":"#REF!"}},null,null,{"$f":"IF(Berechnung!$E$111=\"\",\"\",Translation!$A$31&\" \"&Berechnung!$E$111)","v":""},null,null,{"$f":"IF(Berechnung!$E$112=\"\",\"\",Translation!$A$31&\" \"&Berechnung!$E$112)","v":""}]
[]
[null,null,null,null,null,null,null,null,{"$f":"IF(Berechnung!#REF!=\"\",\"\",VLOOKUP(Berechnung!#REF!,#REF!,3,FALSE))","v":{"$error":"#REF!"}},null,null,{"$f":"IF(Berechnung!$C$111=\"\",\"\",VLOOKUP(Berechnung!$C$111,#REF!,3,FALSE))","v":""},null,null,{"$f":"IF(Berechnung!$C$112=\"\",\"\",VLOOKUP(Berechnung!$C$112,#REF!,3,FALSE))","v":""},null,null,null,null,{"$f":"IF(Berechnung!#REF!=\"\",\"\",VLOOKUP(Berechnung!#REF!,#REF!,3,FALSE))","v":{"$error":"#REF!"}},null,null,{"$f":"IF(Berechnung!$D$111=\"\",\"\",VLOOKUP(Berechnung!$D$111,#REF!,3,FALSE))","v":""},null,null,{"$f":"IF(Berechnung!$D$112=\"\",\"\",VLOOKUP(Berechnung!$D$112,#REF!,3,FALSE))","v":""},null,null,null,null,{"$f":"IF(Berechnung!#REF!=\"\",\"\",VLOOKUP(Berechnung!#REF!,#REF!,3,FALSE))","v":{"$error":"#REF!"}},null,null,{"$f":"IF(Berechnung!$E$111=\"\",\"\",VLOOKUP(Berechnung!$E$111,#REF!,3,FALSE))","v":""},null,null,{"$f":"IF(Berechnung!$E$112=\"\",\"\",VLOOKUP(Berechnung!$E$112,#REF!,3,FALSE))","v":""}]
[]
[]
[null,null,null,null,null,null,null,null,null,null,null,null,{"$f":"IF(Berechnung!$C$97=FALSE,\"\",HYPERLINK(Berechnung!$C$101,Translation!$A$11))","v":""},null,null,null,null,null,null,null,null,null,null,{"$f":"IF(Berechnung!$D$97=FALSE,\"\",HYPERLINK(Berechnung!$D$101,Translation!$A$11))","v":""},null,null,null,null,null,null,null,null,null,null,{"$f":"IF(Berechnung!$E$99=FALSE,\"\",HYPERLINK(Berechnung!$E$105,Translation!$A$11))","v":""}]
[]
[]
[]
[null,null,null,null,null,null,null,null,null,null,null,null,null,null,null,null,null,null,null,null,null,null,null,null,null,null,null,null,null,null,null,null,null,null,null,null,null,"IMT/IH v1.00"]

{"sheet":"Berechnung","index":1,"n_rows":118,"n_cols":28,"rows_kept":118,"cut":false,"hidden":true,"merged":[[2,26,3,27],[54,3,54,10],[54,11,54,12],[54,14,54,17],[55,0,55,1],[60,0,60,1],[2,24,3,25],[2,4,3,5],[2,0,3,1],[2,2,3,3],[2,22,3,23],[2,8,3,10],[2,12,3,13],[2,6,3,7],[2,18,3,19],[2,20,3,21],[56,0,56,1],[58,0,58,1],[54,0,54,2],[57,0,57,1],[59,0,59,1]]}
["VBA-Code"]
["Comboboxen"]
["Wassereintrittstemperatur",null,"Personenzahl",null,"Auswahl Entnahmestellen",null,"Bauausführung",null,"Elektrischer Anschluss ",null,null,null,"El. Anschluss Asien",null,null,null,null,null,"Ansicht",null,"Durchluss",null,"Region",null,"Sprachauswahl",null,"Wasseraustrittstemperatur"]
[]
["30°C",{"$f":"VLOOKUP(A5,A6:B50,2,FALSE)","v":30},"1 Person",{"$f":"VLOOKUP(C5,C6:D50,2,FALSE)","v":1},"Zapfstelle",{"$f":"IF(AND(F8=TRUE,F12=1),1,IF(F7=TRUE,2,3))","v":2},"Segment A",{"$f":"VLOOKUP(G5,G6:H50,2,FALSE)","v":1},"220 V",{"$f":"VLOOKUP(I5,I7:J50,2,FALSE)","v":220},{"$f":"VLOOKUP(I5,I7:K50,3,FALSE)","v":1},null,null,null,null,null,null,null,null,2,"1 l/min",{"$f":"VLOOKUP(U5,U7:V50,2,FALSE)","v":1},"Asien",{"$f":"VLOOKUP(W5,W6:X50,2,FALSE)","v":1},2,{"$f":"VLOOKUP(Y5,Y6:Z50,2,FALSE)","v":"| English"},"50°C",{"$f":"VLOOKUP(AA5,AA7:AB26,2,FALSE)","v":50}]
[]
["10°C",10,{"$f":"\"1 \"&Translation!A13","v":"1 Person"},1,{"$f":"Translation!$A$15","v":"Bath tub"},true,"Segment A",1,{"$f":"IF($X$5=1,M7,\"\")","v":"220 V"},{"$f":"IF($X$5=1,N7,\"\")","v":220},1,null,"220 V",220,null,null,null,null,"Technische Daten",2,"1 l/min",1,"Asien",1,1,"| Deutsch","31°C",31]
["11°C",11,{"$f":"\"2 \"&Translation!A14","v":"2 Persons"},2,{"$f":"Translation!$A$16","v":"Shower"},false,"Segment B",2,{"$f":"IF($X$5=1,M8,\"\")","v":"230 V"},{"$f":"IF($X$5=1,N8,\"\")","v":230},{"$f":"IF(J8=0,\"\",K7+1)","v":2},null,"230 V",230,null,null,null,null,"Features",1,"2 l/min",2,"South Africa",2,2,"| English","32°C",32]
["12°C",12,{"$f":"\"3 \"&Translation!A14","v":"3 Persons"},3,{"$f":"Translation!$A$17","v":"Kitchen sink"},false,"Segment C",3,"240 V",240,{"$f":"IF(J9=0,\"\",K8+1)","v":3},null,"240 V",240,null,null,null,null,"Verbrauch",3,"3 l/min",3,"Middle East",3,null,null,"33°C",33]
["13°C",13,{"$f":"\"4 \"&Translation!A14","v":"4 Persons"},4,{"$f":"Translation!$A$18","v":"Handwash sink"},false,null,null,0,0,"",null,null,null,null,null,null,null,null,null,"4 l/min",4,null,null,null,null,"34°C",34]
["14°C",14,{"$f":"\"5 \"&Translation!A14","v":"5 Persons"},5,null,null,null,null,0,0,"",null,null,null,null,null,null,null,null,null,"5 l/min",5,null,null,null,null,"35°C",35]
["15°C",15,{"$f":"\"6 \"&Translation!A14","v":"6 Persons"},6,"Anzahl Entnahmestelle",{"$f":"COUNTIF(F7:F10,TRUE)","v":1},null,null,0,0,"",null,null,null,null,null,null,null,null,null,"6 l/min",6,null,null,null,null,"36°C",36]
["16°C",16,null,null,null,null,null,null,0,0,"",null,null,null,null,null,null,null,null,null,"7 l/min",7,null,null,null,null,"37°C",37]
["17°C",17,null,null,null,null,null,null,0,0,"",null,null,null,null,null,null,null,null,null,"8 l/min",8,null,null,"Übersetzungen",null,"38°C",38]
["18°C",18,null,null,null,null,null,null,0,0,"",null,null,null,null,null,null,null,null,null,"9 l/min",9,null,null,"Standardwerte",{"$f":"Translation!A28","v":"Your modifications get lost. Continue? "},"39°C",39]
["19°C",19,null,null,null,null,null,null,0,0,"",null,null,null,null,null,null,null,null,null,"10 l/min",10,null,null,"Standardwerte",{"$f":"Translation!A29","v":"Standard values"},"40°C",40]
["20°C",20,null,null,null,null,null,null,0,0,"",null,null,null,null,null,null,null,null,null,"11 l/min",11,null,null,null,null,"41°C",41]
["21°C",21,null,null,null,null,null,null,0,0,"",null,null,null,null,null,null,null,null,null,"12 l/min",12,null,null,null,null,"42°C",42]
["22°C",22,null,null,null,null,null,null,0,0,"",null,null,null,null,null,null,null,null,null,null,null,null,null,null,null,"43°C",43]
["23°C",23,null,null,null,null,null,null,0,0,"",null,null,null,null,null,null,null,null,null,null,null,null,null,null,null,"44°C",44]
["24°C",24,null,null,null,null,null,null,0,0,"",null,null,null,null,null,null,null,null,null,null,null,null,null,null,null,"45°C",45]
["25°C",25,null,null,null,null,null,null,0,0,"",null,null,null,null,null,null,null,null,null,null,null,null,null,null,null,"46°C",46]
["26°C",26,null,null,null,null,null,null,0,0,"",null,null,null,null,null,null,null,null,null,null,null,null,null,null,null,"47°C",47]
["27°C",27,null,null,null,null,null,null,0,0,"",null,null,null,null,null,null,null,null,null,null,null,null,null,null,null,"48°C",48]
["28°C",28,null,null,null,null,null,null,0,0,"",null,null,null,null,null,null,null,null,null,null,null,null,null,null,null,"49°C",49]
["29°C",29,null,null,null,null,null,null,0,0,"",null,null,null,null,null,null,null,null,null,null,null,null,null,null,null,"50°C",50]
["30°C",30,null,null,null,null,null,null,0,0,""]
[null,null,null,null,null,null,null,null,0,0,""]
[null,null,null,null,null,null,null,null,0,0,""]
[null,null,null,null,null,null,null,null,0,0,""]
[null,null,null,null,null,null,null,null,0,0,""]
[null,null,null,null,null,null,null,null,0,0,""]
[null,null,null,null,null,null,null,null,0,0,"",null,null,null,null,null,null,null,null,null,null,null,null,null,null,null,"31°C"]
[null,null,null,null,null,null,null,null,0,0,"",null,null,null,null,null,null,null,null,null,null,null,null,null,null,null,"32°C"]
[null,null,null,null,null,null,null,null,0,0,""]
[null,null,null,null,null,null,null,null,0,0]
[null,null,null,null,null,null,null,null,0,0]
[null,null,null,null,null,null,null,null,0,0]
[null,null,null,null,null,null,null,null,0,0]
[null,null,null,null,null,null,null,null,0,0]
[null,null,null,null,null,null,null,null,0,0]
[null,null,null,null,null,null,null,null,0,0]
[null,null,null,null,null,null,null,null,0,0]
[null,null,null,null,null,null,null,null,0,0]
[null,null,null,null,null,null,null,null,0,0]
[null,null,null,null,null,null,null,null,0,0]
[null,null,null,null,null,null,null,null,0]
[null,null,null,null,null,null,null,null,0]
[null,null,null,null,null,null,null,null,0]
[null,null,null,null,null,null,null,null,{"$f":"IF($X$5=1,M50,\"\")","v":0}]
[]
[]
[]
["Berechnung Energie- und Wasserkosten"]
["Entnahmestelle",null,null,"Berechnung Warmwassermenge",null,null,null,null,null,null,null,"Temperatur",null,"Erf. Leistung","Endenergiebedarf",null,null,null,"CO2"]
["Typ",null,"gewählt ?","Durchfluss","Dauer","Zapfmenge","Frequenz","Personen","Zapfmenge","Nutzungsdauer","Zapfmenge","Kaltwasser","Zapfung",null,"Verteilverluste","pro Zapfung","Pro Tag","Pro Jahr","Emissionen"]
["-",null,"-","l/min","min/Zapfung","Liter/Zapfung","Zapfung/Tag","Anzahl","Liter/Tag","Wochen/Jahr","Liter/Jahr","°C","°C","kW","%","kWh/Zapfung","kWh/d","kWh/a"]
[{"$f":"E7","v":"Bath tub"},null,{"$f":"IF(F7=FALSE,0,1)","v":1},{"$f":"V5","v":1},{"$f":"Einstellungen!D19","v":10},{"$f":"D58*E58","v":10},{"$f":"Einstellungen!D21/7","v":0.14285714285714285},{"$f":"D5","v":1},{"$f":"F58*G58*H58","v":1.4285714285714284},{"$f":"Einstellungen!$D$7","v":49},{"$f":"I58*J58*7","v":489.99999999999989},{"$f":"B5","v":30},{"$f":"AB5","v":50},{"$f":"C58*(1.163*6/100*D58*(M58-L58))","v":1.3956},{"$f":"IF(COUNTIF(F7:F10,TRUE)>1,Einstellungen!D11,Einstellungen!D9)","v":2},{"$f":"F58*1.163*(M58-L58)/(1000*(1-O58/100))","v":0.23734693877551022},{"$f":"I58*1.163*(M58-L58)/(1000*(1-O58/100))","v":3.3906705539358602E-2},{"$f":"K58*1.163*(M58-L58)/(1000*(1-O58/100))","v":11.629999999999997},{"$f":"R58*Einstellungen!$D$13/100","v":73.617899999999977}]
[{"$f":"E8","v":"Shower"},null,{"$f":"IF(F8=FALSE,0,1)","v":0},{"$f":"D58","v":1},{"$f":"Einstellungen!H21","v":6},6,{"$f":"Einstellungen!H19/7","v":0.5714285714285714},{"$f":"D5","v":1},3.4285714285714284,{"$f":"J58","v":49},1176,{"$f":"L58","v":30},{"$f":"AB5","v":50},{"$f":"C59*(1.163*6/100*D59*(M59-L59))","v":0},{"$f":"$O$58","v":2},{"$f":"F59*1.163*(M59-L59)/(1000*(1-O59/100))","v":0.14240816326530611},{"$f":"I59*1.163*(M59-L59)/(1000*(1-O59/100))","v":8.1376093294460647E-2},{"$f":"K59*1.163*(M59-L59)/(1000*(1-O59/100))","v":27.912000000000003},{"$f":"R59*Einstellungen!$D$13/100","v":176.68296000000001}]
[{"$f":"E9","v":"Kitchen sink"},null,0,{"$f":"D59","v":1},{"$f":"Einstellungen!D26","v":1},1,{"$f":"Einstellungen!H29","v":2},1,2,{"$f":"J58","v":49},686,{"$f":"L58","v":30},{"$f":"AB5","v":50},0,{"$f":"$O$58","v":2},{"$f":"F60*1.163*(M60-L60)/(1000*(1-O60/100))","v":2.3734693877551023E-2},{"$f":"I60*1.163*(M60-L60)/(1000*(1-O60/100))","v":4.7469387755102045E-2},{"$f":"K60*1.163*(M60-L60)/(1000*(1-O60/100))","v":16.282},{"$f":"R60*Einstellungen!$D$13/100","v":103.06505999999999}]
["Handwash sink",null,0,1,{"$f":"Einstellungen!H26","v":1},{"$f":"D61*E61","v":1},{"$f":"Einstellungen!D29","v":1.5},{"$f":"D5","v":1},1.5,{"$f":"J58","v":49},514.5,{"$f":"L58","v":30},{"$f":"AB5","v":50},0,{"$f":"$O$58","v":2},{"$f":"F61*1.163*(M61-L61)/(1000*(1-O61/100))","v":2.3734693877551023E-2},{"$f":"I61*1.163*(M61-L61)/(1000*(1-O61/100))","v":3.5602040816326529E-2},{"$f":"K61*1.163*(M61-L61)/(1000*(1-O61/100))","v":12.211500000000001},{"$f":"R61*Einstellungen!$D$13/100","v":77.298795000000013}]
[]
[]
[]
[]
[]
[]
[]
[]
[null,null,null,null,null,null,null,null,null,null,null,null,null,"MAX"]
["Summe",null,null,null,null,{"$f":"SUMPRODUCT($C$58:$C$70,F58:F70)","v":10},null,null,{"$f":"SUMPRODUCT($C$58:$C$70,I58:I70)","v":1.4285714285714284},null,{"$f":"SUMPRODUCT($C$58:$C$70,K58:K70)","v":489.99999999999989},null,null,{"$f":"IF(C58=1,MAX(MAX(N58:N70),8),(MAX(N58:N70)))","v":8},null,{"$f":"SUMPRODUCT($C$58:$C$70,P58:P70)","v":0.23734693877551022},{"$f":"SUMPRODUCT($C$58:$C$70,Q58:Q70)","v":3.3906705539358602E-2},{"$f":"SUMPRODUCT($C$58:$C$70,R58:R70)","v":11.629999999999997},{"$f":"R71*Einstellungen!$D$13/100","v":73.617899999999977}]
[]
[]
[]
[]
[]
["Slots","Slot 1","Slot 2","Slot 3"]
["Index",{"$f":"SMALL(DatenGeraete!B3:B56,1)","v":35},{"$f":"SMALL(DatenGeraete!B3:B56,2)","v":36},{"$f":"SMALL(DatenGeraete!B3:B56,3)","v":39}]
["ArtNr.",{"$f":"VLOOKUP(B78,DatenGeraete!$C$3:$AY$99,2,FALSE)","v":73716},{"$f":"VLOOKUP(C78,DatenGeraete!$C$3:$AY$99,2,FALSE)","v":73481},{"$f":"VLOOKUP(D78,DatenGeraete!$C$3:$AY$99,2,FALSE)","v":224201}]
["AusgabeArtNr.",{"$f":"\"ArtNr.\"&\" \"&B79","v":"ArtNr. 73716"},{"$f":"\"ArtNr.\"&\" \"&C79","v":"ArtNr. 73481"},"ArtNr. 224201"]
["Bezeichnung 2",{"$f":"VLOOKUP(B78,DatenGeraete!$C$3:$AY$99,4,FALSE)","v":"Multipoint"},{"$f":"VLOOKUP(C78,DatenGeraete!$C$3:$AY$99,4,FALSE)","v":"Multipoint"},{"$f":"VLOOKUP(D78,DatenGeraete!$C$3:$AY$99,4,FALSE)","v":"Multipoint"}]
["Bezeichnung 1",{"$f":"VLOOKUP(B78,DatenGeraete!$C$3:$AY$99,3,FALSE)","v":"DHA 4/8 L"},{"$f":"VLOOKUP(C78,DatenGeraete!$C$3:$AY$99,3,FALSE)","v":"DHC 8"},{"$f":"VLOOKUP(D78,DatenGeraete!$C$3:$AY$99,3,FALSE)","v":"DHC-E 8/10"}]
["Bild anzeigen",{"$f":"\"BilderGeraete!E\"&B78+2","v":"BilderGeraete!E37"},{"$f":"\"BilderGeraete!E\"&C78+2","v":"BilderGeraete!E38"},{"$f":"\"BilderGeraete!E\"&D78+2","v":"BilderGeraete!E41"}]
["Leistung Gerät",{"$f":"VLOOKUP(B78,DatenGeraete!$C$3:$AY$99,25,FALSE) &\" kW\"","v":"8 kW"},{"$f":"VLOOKUP(C78,DatenGeraete!$C$3:$AY$99,25,FALSE) &\" kW\"","v":"8 kW"},{"$f":"VLOOKUP(D78,DatenGeraete!$C$3:$AY$99,25,FALSE) &\" kW\"","v":"8,1 kW"}]
["PIC-Nummer Link",{"$f":"VLOOKUP(B78,DatenGeraete!$C$3:$AY$96,30,FALSE)","v":"PIC00002247-00.jpg"},{"$f":"VLOOKUP(C78,DatenGeraete!$C$3:$AY$96,30,FALSE)","v":"PIC00002247-00.jpg"},{"$f":"VLOOKUP(D78,DatenGeraete!$C$3:$AY$96,30,FALSE)","v":"PIC00002100-00.jpg"}]
["Datenblatt"]
["Bulletpoint 1",{"$f":"VLOOKUP($B$78,DatenGeraete!$C$3:$AY$99,34,FALSE)","v":"Hydraulically controlled"},{"$f":"VLOOKUP($C$78,DatenGeraete!$C$3:$AY$99,34,FALSE)","v":"Hydraulically controlled"},{"$f":"VLOOKUP($D$78,DatenGeraete!$C$3:$AY$99,34,FALSE)","v":"Simple and secure operation"}]
["Bulletpoint 2",{"$f":"VLOOKUP($B$78,DatenGeraete!$C$3:$AY$99,35,FALSE)","v":"Metal water connections"},{"$f":"VLOOKUP($C$78,DatenGeraete!$C$3:$AY$99,35,FALSE)","v":"Metal water connections"},{"$f":"VLOOKUP($D$78,DatenGeraete!$C$3:$AY$99,35,FALSE)","v":"Quick and easy installation"}]
["Bulletpoint 3",{"$f":"VLOOKUP($B$78,DatenGeraete!$C$3:$AY$99,36,FALSE)","v":"Power cable with safety plug"},{"$f":"VLOOKUP($C$78,DatenGeraete!$C$3:$AY$99,36,FALSE)","v":"Power cable with safety plug"},{"$f":"VLOOKUP($D$78,DatenGeraete!$C$3:$AY$99,36,FALSE)","v":"Works even with low water pressure"}]
["Bulletpoint 4",{"$f":"VLOOKUP($B$78,DatenGeraete!$C$3:$AY$99,37,FALSE)","v":"Tubular heater system"},{"$f":"VLOOKUP($C$78,DatenGeraete!$C$3:$AY$99,37,FALSE)","v":"Tubular heater system"},{"$f":"VLOOKUP($D$78,DatenGeraete!$C$3:$AY$99,37,FALSE)","v":"Use as a mains pressure appliance for several draw-off points or a shower"}]
["Bulletpoint 5",{"$f":"VLOOKUP($B$78,DatenGeraete!$C$3:$AY$99,38,FALSE)","v":""},{"$f":"VLOOKUP($C$78,DatenGeraete!$C$3:$AY$99,38,FALSE)","v":""},{"$f":"VLOOKUP($D$78,DatenGeraete!$C$3:$AY$99,38,FALSE)","v":"EMC compliant"}]
["Absicherung",{"$f":"VLOOKUP(B78,DatenGeraete!$C$3:$AY$99,29,FALSE)&\" A\"","v":"40 A"},{"$f":"VLOOKUP(C78,DatenGeraete!$C$3:$AY$99,29,FALSE)&\" A\"","v":"40 A"},{"$f":"VLOOKUP(D78,DatenGeraete!$C$3:$AY$99,29,FALSE)&\" A\"","v":"50 A"}]
["Kabeldurchmesser",{"$f":"VLOOKUP(B78,DatenGeraete!$C$3:$AY$99,28,FALSE)& \" mm²\"","v":"10 mm²"},{"$f":"VLOOKUP(C78,DatenGeraete!$C$3:$AY$99,28,FALSE)& \" mm²\"","v":"10 mm²"},{"$f":"VLOOKUP(D78,DatenGeraete!$C$3:$AY$99,28,FALSE)& \" mm²\"","v":"16 mm²"}]
[]
[]
[]
[]
[]
[]
[]
[]
["Ausgabe Leistung",{"$f":"ROUND(N71,2)&\" kW\"","v":"8 kW"},{"$f":"ROUND(N71,2)&\" kW\"","v":"8 kW"},{"$f":"ROUND(N71,2)&\" kW\"","v":"8 kW"}]
[]
["Ausgabe Energiebedarf",{"$f":"ROUND(R71,2)& \"  kWh/a\"","v":"11,63  kWh/a"},{"$f":"ROUND(R71,2)& \"  kWh/a\"","v":"11,63  kWh/a"},{"$f":"ROUND(R71,2)& \"  kWh/a\"","v":"11,63  kWh/a"}]
["Ausgabe Warmwasser",{"$f":"ROUND(K71/1000,2)&\" m³/a\"","v":"0,49 m³/a"},{"$f":"ROUND(K71/1000,2)&\" m³/a\"","v":"0,49 m³/a"},{"$f":"ROUND(K71/1000,2)&\" m³/a\"","v":"0,49 m³/a"}]
["Ausgabe CO2Emisssionen",{"$f":"ROUND(S71/1000,2)&\" kg/a\"","v":"0,07 kg/a"},{"$f":"ROUND(S71/1000,2)&\" kg/a\"","v":"0,07 kg/a"},{"$f":"ROUND(S71/1000,2)&\" kg/a\"","v":"0,07 kg/a"}]
[]
[]
["email",{"$f":"Translation!A56","v":"Error warm water Navigator Report"}]
["Email Beschreibung",{"$f":"Translation!A57","v":"Error Description"}]
[]
["VBA Verweise"]
["VBA Verweis 1","{000204EF-0000-0000-C000-000000000046}",4,0,"Visual Basic for Application"]
["VBA Verweis 2","{00020813-0000-0000-C000-000000000046}",1,6,"Microsoft Excel 12.0  Object Library"]
["VBA Verweis 3","{00020430-0000-0000-C000-000000000046}",2,0,"OLE Automation"]
["VBA Verweis 4","{2DF8D04C-5BFA-101B-BDE5-00AA0044DE52}",2,4,"Microsoft Forms 2.0  Object Library"]
["VBA Verweis 5","{0D452EE1-E08F-101A-852E-02608C4D0BB4}",2,0,"Microsoft Office 12.0  Object Library"]
["Vba Verweis 6","{420B2830-E718-11CF-893D-00A0C9054228}",1,0,"Microsoft Scripting Runtime"]

{"sheet":"Einstellungen","index":2,"n_rows":29,"n_cols":8,"rows_kept":29,"cut":false,"hidden":false,"merged":[[45,12,46,12],[45,4,46,4],[45,8,46,8],[45,6,46,6],[45,10,46,10]]}
[751953]
[null,{"$f":"Translation!A32","v":"Advanced settings"}]
[]
[]
[null,">",{"$f":"Translation!A33","v":"Standard settings"}]
[]
[null,null,{"$f":"Translation!A34","v":"Useable time of DHW production"},49]
[]
[null,null,{"$f":"Translation!A35","v":"Dispersion losses (individual supply)"},2]
[]
[null,null,{"$f":"Translation!A36","v":"Dispersion losses (collective provision)"},10]
[]
[null,null,{"$f":"Translation!A37","v":"CO2-Emission electricity [g/kWh]"},633]
[]
[null,">",{"$f":"Translation!A15","v":"Bath tub"},null,null,">",{"$f":"Translation!A16","v":"Shower"}]
[]
[]
[]
[null,null,{"$f":"Translation!A41","v":"Time of tapping in minutes"},10,null,null,{"$f":"Translation!A46","v":"Showers per week (per person)"},4]
[]
[null,null,{"$f":"Translation!A40","v":"How often do you have a bath per week?"},1,null,null,{"$f":"Translation!A47","v":"Average shower time in minutes"},6]
[]
[null,">",{"$f":"Translation!A17","v":"Kitchen sink"},null,null,">",{"$f":"Translation!A18","v":"Handwash sink"}]
[]
[]
[null,null,{"$f":"Translation!A41","v":"Time of tapping in minutes"},1,null,null,{"$f":"Translation!A41","v":"Time of tapping in minutes"},1]
[]
[]
[null,null,{"$f":"Translation!A43","v":"Frequency per day"},1.5,null,null,{"$f":"Translation!A44","v":"Frequency per day (per person)"},2]

{"sheet":"DatenGeraete","index":3,"n_rows":56,"n_cols":51,"rows_kept":56,"cut":false,"hidden":true,"merged":[[1,1,1,2],[0,1,0,5],[0,7,0,12],[0,13,0,19],[0,20,0,28],[0,31,0,33],[1,10,1,11],[1,43,1,49],[0,40,0,49],[1,23,1,25],[1,16,1,18],[0,35,0,39]]}
["Empfehlung","Bezeichnung Gerät",null,null,null,null,null,"Verwendung",null,null,null,null,null,"Segment",null,null,null,null,null,null,"Leistung",null,null,null,null,null,null,null,null,"KabelØ","Absicherung","Produktbilder",null,null,"Datenblatt","Feautures",null,null,null,null,"Region",null,null,null,null,null,null,null,null,null,"Regional verfügbar?"]
["Geht das Gerät?","Index",null,"ArtNr.","Bezeichnung 1","Bezeichnung 2","Dummy","Dusche = 1","Badewanne = 2","Küche/HandWB = 3","Dummies",null,{"$f":"Berechnung!F5","v":2},"Segment A = 1","Segment B = 2","Segment C = 3","Dummies",null,null,{"$f":"Berechnung!H5","v":1},"220 V = 1","230 V = 2","240 V = 3","Dummies",null,null,{"$f":"Berechnung!K5","v":1},{"$f":"Berechnung!N71","v":8},{"$f":"INDEX(AA$3:AA$1048576,MATCH(TRUE,AB$3:AB$1048576,0))+0.5","v":8.5},"[mm²]","[A]","Pic.Nr","Pic.Adresse","Link","-","BulletPoint 1","BulletPoint 2","BulletPoint 3","BulletPoint 5","BulletPoint 6","Asia = 1","S.Africa = 2","Middle East = 3","Dummies",null,null,null,null,null,null,{"$f":"Berechnung!X5","v":1}]
[{"$f":"IF(AND(M3=TRUE,T3=TRUE,AC3=TRUE,AY3=TRUE),TRUE,FALSE)","v":false},{"$f":"IF(A3=TRUE,C3,999)","v":999},1,"---","DJ 30 E - 2","Shower Unit",null,true,false,false,null,null,{"$f":"IF($M$2=1,H3,IF($M$2=2,I3,J3))","v":false},true,true,true,null,null,null,{"$f":"IF($T$2=1,N3,IF($T$2=2,O3,P3))","v":true},3,3.3,3.6,null,null,null,{"$f":"IF($AA$2=1,U3,IF($AA$2=2,V3,W3))","v":3},{"$f":"IF(OR(M3=FALSE,T3=FALSE),FALSE,IF(AA3>=$AB$2,TRUE,FALSE))","v":false},{"$f":"IF(AB3=TRUE,IF(AA3>$AC$2,FALSE,TRUE))","v":false},1.5,16,{"$f":"RIGHT(AG3,LEN(AG3)-44)","v":"6400879J30E-2-ShowerHead.jpg"},"http://www.stiebeleltronasia.com/productimg/6400879J30E-2-ShowerHead.jpg",{"$f":"IF(AF3=\"---\",\"\",HYPERLINK(AG3,UPPER(RIGHT(AG3,3))))","v":"JPG"},null,{"$f":"Translation!A60","v":"The worlds first instant hybrid water heater "},{"$f":"Translation!A77","v":"Up to 40% of water and energy saving"},{"$f":"Translation!A92","v":"Patented Aerojet for saving water and electricity "},{"$f":"Translation!A106","v":" Exact & easy temperature control "},{"$f":"Translation!A121","v":"Designed and manufactured according to CB standard"},true,true,true,null,null,null,null,null,null,null,{"$f":"IF($AY$2=1,AO3,IF($AY$2=2,AP3,AQ3))","v":true}]
[{"$f":"IF(AND(M4=TRUE,T4=TRUE,AC4=TRUE,AY4=TRUE),TRUE,FALSE)","v":false},{"$f":"IF(A4=TRUE,C4,999)","v":999},2,231001,"DEM 3","Multipoint",null,false,false,true,null,null,{"$f":"IF($M$2=1,H4,IF($M$2=2,I4,J4))","v":false},true,true,false,null,null,null,{"$f":"IF($T$2=1,N4,IF($T$2=2,O4,P4))","v":true},3.2,3.5,3.8,null,null,null,{"$f":"IF($AA$2=1,U4,IF($AA$2=2,V4,W4))","v":3.2},{"$f":"IF(OR(M4=FALSE,T4=FALSE),FALSE,IF(AA4>=$AB$2,TRUE,FALSE))","v":false},{"$f":"IF(AB4=TRUE,IF(AA4>$AC$2,FALSE,TRUE))","v":false},1.5,16,"PIC00002180-00.jpg",{"$f":"IF(AF4=\"---\",\"---\",\"http://www.stiebel-eltron.de/ste_shared/imported/produktbilder/zoom/\"&AF4)","v":"http://www.stiebel-eltron.de/ste_shared/imported/produktbilder/zoom/PIC00002180-00.jpg"},"JPG",null,{"$f":"Translation!A65","v":"Electronically controlled mini instantaneous water heater for supplying a basin"},{"$f":"Translation!A83","v":"Constant outlet temperature up to the output limit thanks to electronics"},{"$f":"Translation!A97","v":"Temperature can be selected internally from approx. 30 to 50 °C"},{"$f":"Translation!A111","v":"Flow rate can be selected internally"},{"$f":"Translation!A126","v":"Effective bare wire heating system"},true,true,true,null,null,null,null,null,null,null,true]
[false,999,3,220813,"DHM 3","Multipoint",null,false,false,true,null,null,false,false,true,true,null,null,null,false,3.2,3.4,3.8,null,null,null,3.2,false,false,1.5,16,"PIC00001985-00.jpg",{"$f":"IF(AF5=\"---\",\"---\",\"http://www.stiebel-eltron.de/ste_shared/imported/produktbilder/zoom/\"&AF5)","v":"http://www.stiebel-eltron.de/ste_shared/imported/produktbilder/zoom/PIC00001985-00.jpg"},"JPG",null,{"$f":"Translation!A74","v":"Hydraulically controlled"},{"$f":"Translation!A85","v":"Short heat-up time"},{"$f":"Translation!A98","v":"Undersink installation"},{"$f":"Translation!A112","v":"Device complete with the wall retainer integrated into the back panel"},{"$f":"Translation!A129","v":"Special perlator with flow rate limiter for m22 (fem.) and m24 (male)"},true,true,true,null,null,null,null,null,null,null,true]
[false,999,4,222296,"AQ 35 E - 2","Shower Unit",null,true,false,false,null,null,false,false,false,true,null,null,null,false,3.5,3.8,4.2,null,null,null,3.5,false,false,2.5,20,{"$f":"RIGHT(AG6,LEN(AG6)-44)","v":"1847168Q35-45E-2ShowerHead.jpg"},"http://www.stiebeleltronasia.com/productimg/1847168Q35-45E-2ShowerHead.jpg","JPG",null,{"$f":"Translation!A61","v":"Step less Temperature Control Knob"},{"$f":"Translation!A78","v":"Anti-scalding with Action Thermostat "},{"$f":"Translation!A110","v":"Works well even in low water pressure areas"},{"$f":"Translation!A128","v":"ELSD protection against Electric Shock "},{"$f":"Translation!A122","v":"Electricity Surge Protection"},true,true,true,null,null,null,null,null,null,null,true]
[false,999,5,222290,"IJ 35 E","Shower Unit",null,true,false,false,null,null,false,true,false,false,null,null,null,true,3.5,3.8,4.2,null,null,null,3.5,false,false,2.5,20,{"$f":"RIGHT(AG7,LEN(AG7)-44)","v":"7610596J45EShowerHead.jpg"},"http://www.stiebeleltronasia.com/productimg/7610596J45EShowerHead.jpg","JPG",null,{"$f":"Translation!A62","v":"Luxury design"},{"$f":"Translation!A79","v":"Aero Jet ON/OFF control"},{"$f":"Translation!A93","v":"Anti-scalding with Double Action Thermostat"},{"$f":"Translation!A128","v":"ELSD protection against Electric Shock "},{"$f":"Translation!A122","v":"Electricity Surge Protection"},true,true,true,null,null,null,null,null,null,null,true]
[false,999,6,222358,"IL 35 EC","Shower Unit",null,true,false,false,null,null,false,true,false,false,null,null,null,true,3.5,3.8,4.2,null,null,null,3.5,false,false,2.5,20,{"$f":"RIGHT(AG8,LEN(AG8)-44)","v":"8661866L45ECShowerHead.jpg"},"http://www.stiebeleltronasia.com/productimg/8661866L45ECShowerHead.jpg","JPG",null,{"$f":"Translation!A62","v":"Luxury design"},{"$f":"Translation!A80","v":"ELCB protection against Electric Shock"},{"$f":"Translation!A94","v":"Multi color display"},{"$f":"Translation!A107","v":"Exact and quick temperature selection"},{"$f":"Translation!A123","v":"Microprocessor controlled"},true,true,true,null,null,null,null,null,null,null,true]
[false,999,7,222283,"IS 35 E - 2","Shower Unit",null,true,false,false,null,null,false,false,true,false,null,null,null,false,3.5,3.8,4.2,null,null,null,3.5,false,false,2.5,20,{"$f":"RIGHT(AG9,LEN(AG9)-44)","v":"8674561S35-45-60E-2Showerhead.jpg"},"http://www.stiebeleltronasia.com/productimg/8674561S35-45-60E-2Showerhead.jpg","JPG",null,{"$f":"Translation!A67","v":"Chromed Shower Accessories"},{"$f":"Translation!A93","v":"Anti-scalding with Double Action Thermostat"},{"$f":"Translation!A110","v":"Works well even in low water pressure areas"},{"$f":"Translation!A115","v":"Maintenance free copper tank"},{"$f":"Translation!A128","v":"ELSD protection against Electric Shock "},true,true,true,null,null,null,null,null,null,null,true]
[false,999,8,"---","IP 35 EC","Shower Unit",null,true,false,false,null,null,false,true,false,false,null,null,null,true,3.5,3.8,4.2,null,null,null,3.5,false,false,2.5,20,"PICIP35_45EC.jpg","keine gefunden","x",null,{"$f":"Translation!A93","v":"Anti-scalding with Double Action Thermostat"},{"$f":"Translation!A125","v":"Chromed shower head in 5 settings"},{"$f":"Translation!A110","v":"Works well even in low water pressure areas"},{"$f":"Translation!A108","v":"Rust-free copper tank"},{"$f":"Translation!A128","v":"ELSD protection against Electric Shock "},true,true,true,null,null,null,null,null,null,null,true]
[false,999,9,"---","WS 35 E","Shower Unit",null,true,false,false,null,null,false,false,true,false,null,null,null,false,3.5,3.8,4.2,null,null,null,3.5,false,false,2.5,20,{"$f":"RIGHT(AG11,LEN(AG11)-44)","v":"1168212S35E+SHOWER.jpg"},"http://www.stiebeleltronasia.com/productimg/1168212S35E+SHOWER.jpg",{"$f":"IF(AF11=\"---\",\"\",HYPERLINK(AG11,UPPER(RIGHT(AG11,3))))","v":"JPG"},null,{"$f":"Translation!A63","v":"Lage coloured LCD display"},{"$f":"Translation!A81","v":"ELCB protection against electricity leakage"},{"$f":"Translation!A95","v":"Easy and save to operate"},{"$f":"Translation!A109","v":"5 in 1 chrome accessories"},{"$f":"Translation!A124","v":"Microcontroller temperature stabilizer"},true,true,true,null,null,null,null,null,null,null,true]
[false,999,10,230997,"XG 35 EC","Shower Unit",null,true,false,false,null,null,false,true,false,false,null,null,null,true,3.5,3.8,4.2,null,null,null,3.5,false,false,2.5,20,{"$f":"RIGHT(AG12,LEN(AG12)-44)","v":"7067871G35ECShowerhead.jpg"},"http://www.stiebeleltronasia.com/productimg/7067871G35ECShowerhead.jpg","JPG",null,{"$f":"Translation!A64","v":"Awarded German design "},{"$f":"Translation!A82","v":"Built in Aero Jet"},{"$f":"Translation!A96","v":"Tank made from X-tra Reinforced Polyamide"},{"$f":"Translation!A110","v":"Works well even in low water pressure areas"},{"$f":"Translation!A125","v":"Chromed shower head in 5 settings"},true,true,true,null,null,null,null,null,null,null,true]
[false,999,11,231002,"DEM 4","Multipoint",null,false,false,true,null,null,false,true,true,false,null,null,null,true,4,4.4000000000000004,4.8,null,null,null,4,false,false,2.5,20,"PIC00002180-00.jpg",{"$f":"IF(AF13=\"---\",\"---\",\"http://www.stiebel-eltron.de/ste_shared/imported/produktbilder/zoom/\"&AF13)","v":"http://www.stiebel-eltron.de/ste_shared/imported/produktbilder/zoom/PIC00002180-00.jpg"},"JPG",null,{"$f":"Translation!A65","v":"Electronically controlled mini instantaneous water heater for supplying a basin"},{"$f":"Translation!A83","v":"Constant outlet temperature up to the output limit thanks to electronics"},{"$f":"Translation!A97","v":"Temperature can be selected internally from approx. 30 to 50 °C"},{"$f":"Translation!A111","v":"Flow rate can be selected internally"},{"$f":"Translation!A126","v":"Effective bare wire heating system"},true,true,true,null,null,null,null,null,null,null,true]
[false,999,12,220814,"DHM 4","Multipoint",null,false,false,true,null,null,false,false,true,true,null,null,null,false,4,4.4000000000000004,4.8,null,null,null,4,false,false,2.5,20,"PIC00001985-00.jpg",{"$f":"IF(AF14=\"---\",\"---\",\"http://www.stiebel-eltron.de/ste_shared/imported/produktbilder/zoom/\"&AF14)","v":"http://www.stiebel-eltron.de/ste_shared/imported/produktbilder/zoom/PIC00001985-00.jpg"},"JPG",null,{"$f":"Translation!A74","v":"Hydraulically controlled"},{"$f":"Translation!A85","v":"Short heat-up time"},{"$f":"Translation!A98","v":"Undersink installation"},{"$f":"Translation!A112","v":"Device complete with the wall retainer integrated into the back panel"},{"$f":"Translation!A129","v":"Special perlator with flow rate limiter for m22 (fem.) and m24 (male)"},true,true,true,null,null,null,null,null,null,null,true]
[false,999,13,73715,"DHC 4","Multipoint",null,false,false,true,null,null,false,true,false,false,null,null,null,true,4,4.4000000000000004,4.8,null,null,null,4,false,false,2.5,20,"PIC00002247-00.jpg",{"$f":"IF(AF15=\"---\",\"---\",\"http://www.stiebel-eltron.de/ste_shared/imported/produktbilder/zoom/\"&AF15)","v":"http://www.stiebel-eltron.de/ste_shared/imported/produktbilder/zoom/PIC00002247-00.jpg"},"JPG",null,{"$f":"Translation!A74","v":"Hydraulically controlled"},{"$f":"Translation!A86","v":"Metal water connections"},{"$f":"Translation!A101","v":"Power cable with safety plug"},{"$f":"Translation!A116","v":"Tubular heater system"},{"$f":"\"\"","v":""},true,true,true,null,null,null,null,null,null,null,true]
[false,999,14,222297,"AQ 45 E - 2","Shower Unit",null,true,false,false,null,null,false,false,false,true,null,null,null,false,4.5,4.9000000000000004,5.4,null,null,null,4.5,false,false,4,25,{"$f":"RIGHT(AG16,LEN(AG16)-44)","v":"1847168Q35-45E-2ShowerHead.jpg"},"http://www.stiebeleltronasia.com/productimg/1847168Q35-45E-2ShowerHead.jpg","JPG",null,{"$f":"Translation!A61","v":"Step less Temperature Control Knob"},{"$f":"Translation!A78","v":"Anti-scalding with Action Thermostat "},{"$f":"Translation!A110","v":"Works well even in low water pressure areas"},{"$f":"Translation!A128","v":"ELSD protection against Electric Shock "},{"$f":"Translation!A122","v":"Electricity Surge Protection"},true,true,true,null,null,null,null,null,null,null,true]
[false,999,15,222291,"IJ 45 E","Shower Unit",null,true,false,false,null,null,false,true,false,false,null,null,null,true,4.5,4.9000000000000004,5.4,null,null,null,4.5,false,false,4,25,"7610596J45EShowerHead.jpg","http://www.stiebeleltronasia.com/productimg/7610596J45EShowerHead.jpg","JPG",null,{"$f":"Translation!A62","v":"Luxury design"},{"$f":"Translation!A79","v":"Aero Jet ON/OFF control"},{"$f":"Translation!A93","v":"Anti-scalding with Double Action Thermostat"},{"$f":"Translation!A128","v":"ELSD protection against Electric Shock "},{"$f":"Translation!A122","v":"Electricity Surge Protection"},true,true,true,null,null,null,null,null,null,null,true]
[false,999,16,222359,"IL 45 EC","Shower Unit",null,true,false,false,null,null,false,true,false,false,null,null,null,true,4.5,4.9000000000000004,5.4,null,null,null,4.5,false,false,4,25,{"$f":"RIGHT(AG18,LEN(AG18)-44)","v":"8661866L45ECShowerHead.jpg"},"http://www.stiebeleltronasia.com/productimg/8661866L45ECShowerHead.jpg","JPG",null,{"$f":"Translation!A62","v":"Luxury design"},{"$f":"Translation!A80","v":"ELCB protection against Electric Shock"},{"$f":"Translation!A94","v":"Multi color display"},{"$f":"Translation!A107","v":"Exact and quick temperature selection"},{"$f":"Translation!A123","v":"Microprocessor controlled"},true,true,true,null,null,null,null,null,null,null,true]
[false,999,17,222284,"IS 45 E - 2","Shower Unit",null,true,false,false,null,null,false,false,true,false,null,null,null,false,4.5,4.9000000000000004,5.4,null,null,null,4.5,false,false,4,25,{"$f":"RIGHT(AG19,LEN(AG19)-44)","v":"8674561S35-45-60E-2Showerhead.jpg"},"http://www.stiebeleltronasia.com/productimg/8674561S35-45-60E-2Showerhead.jpg","JPG",null,{"$f":"Translation!A67","v":"Chromed Shower Accessories"},{"$f":"Translation!A93","v":"Anti-scalding with Double Action Thermostat"},{"$f":"Translation!A110","v":"Works well even in low water pressure areas"},{"$f":"Translation!A115","v":"Maintenance free copper tank"},{"$f":"Translation!A128","v":"ELSD protection against Electric Shock "},true,true,true,null,null,null,null,null,null,null,true]
[false,999,18,"---","IP 45EC","Shower Unit",null,true,false,false,null,null,false,true,false,false,null,null,null,true,4.5,4.9000000000000004,5.4,null,null,null,4.5,false,false,4,25,"PICIP35_45EC.jpg","keine gefunden","x",null,{"$f":"Translation!A93","v":"Anti-scalding with Double Action Thermostat"},{"$f":"Translation!A125","v":"Chromed shower head in 5 settings"},{"$f":"Translation!A110","v":"Works well even in low water pressure areas"},{"$f":"Translation!A108","v":"Rust-free copper tank"},{"$f":"Translation!A128","v":"ELSD protection against Electric Shock "},true,true,true,null,null,null,null,null,null,null,true]
[false,999,19,null,"WS 45 E","Shower Unit",null,true,false,false,null,null,false,false,true,false,null,null,null,false,4.5,4.9000000000000004,5.4,null,null,null,4.5,false,false,4,25,{"$f":"RIGHT(AG21,LEN(AG21)-44)","v":"4381103S45E+SHOWER.jpg"},"http://www.stiebeleltronasia.com/productimg/4381103S45E+SHOWER.jpg",{"$f":"IF(AF21=\"---\",\"\",HYPERLINK(AG21,UPPER(RIGHT(AG21,3))))","v":"JPG"},null,{"$f":"Translation!A63","v":"Lage coloured LCD display"},{"$f":"Translation!A81","v":"ELCB protection against electricity leakage"},{"$f":"Translation!A95","v":"Easy and save to operate"},{"$f":"Translation!A109","v":"5 in 1 chrome accessories"},{"$f":"Translation!A124","v":"Microcontroller temperature stabilizer"},true,true,true,null,null,null,null,null,null,null,true]
[false,999,20,230998,"XG 45 EC","Shower Unit",null,true,false,false,null,null,false,true,false,false,null,null,null,true,4.5,4.9000000000000004,5.4,null,null,null,4.5,false,false,4,25,{"$f":"RIGHT(AG22,LEN(AG22)-44)","v":"1728515G45ECShowerhead.jpg"},"http://www.stiebeleltronasia.com/productimg/1728515G45ECShowerhead.jpg",{"$f":"IF(AF22=\"---\",\"\",HYPERLINK(AG22,UPPER(RIGHT(AG22,3))))","v":"JPG"},null,{"$f":"Translation!A64","v":"Awarded German design "},{"$f":"Translation!A82","v":"Built in Aero Jet"},{"$f":"Translation!A96","v":"Tank made from X-tra Reinforced Polyamide"},{"$f":"Translation!A110","v":"Works well even in low water pressure areas"},{"$f":"Translation!A125","v":"Chromed shower head in 5 settings"},true,true,true,null,null,null,null,null,null,null,true]
[false,999,21,231215,"DEM 6 ","Multipoint",null,false,false,true,null,null,false,true,false,false,null,null,null,true,5.2,5.7,6.2,null,null,null,5.2,false,false,6,32,"PIC00002180-00.jpg",{"$f":"IF(AF23=\"---\",\"---\",\"http://www.stiebel-eltron.de/ste_shared/imported/produktbilder/zoom/\"&AF23)","v":"http://www.stiebel-eltron.de/ste_shared/imported/produktbilder/zoom/PIC00002180-00.jpg"},{"$f":"IF(AF23=\"---\",\"\",HYPERLINK(AG23,UPPER(RIGHT(AG23,3))))","v":"JPG"},null,{"$f":"Translation!A65","v":"Electronically controlled mini instantaneous water heater for supplying a basin"},{"$f":"Translation!A83","v":"Constant outlet temperature up to the output limit thanks to electronics"},{"$f":"Translation!A97","v":"Temperature can be selected internally from approx. 30 to 50 °C"},{"$f":"Translation!A111","v":"Flow rate can be selected internally"},{"$f":"Translation!A126","v":"Effective bare wire heating system"},true,true,true,null,null,null,null,null,null,null,true]
[false,999,22,185473,"DHM 6","Multipoint",null,false,false,true,null,null,false,true,true,false,null,null,null,true,5.2,5.7,6.2,null,null,null,5.2,false,false,6,32,"PIC00001985-00.jpg",{"$f":"IF(AF24=\"---\",\"---\",\"http://www.stiebel-eltron.de/ste_shared/imported/produktbilder/zoom/\"&AF24)","v":"http://www.stiebel-eltron.de/ste_shared/imported/produktbilder/zoom/PIC00001985-00.jpg"},{"$f":"IF(AF24=\"---\",\"\",HYPERLINK(AG24,UPPER(RIGHT(AG24,3))))","v":"JPG"},null,{"$f":"Translation!A74","v":"Hydraulically controlled"},{"$f":"Translation!A85","v":"Short heat-up time"},{"$f":"Translation!A98","v":"Undersink installation"},{"$f":"Translation!A112","v":"Device complete with the wall retainer integrated into the back panel"},{"$f":"Translation!A129","v":"Special perlator with flow rate limiter for m22 (fem.) and m24 (male)"},true,true,true,null,null,null,null,null,null,null,true]
[false,999,23,"---","DMT 6","Multipoint",null,false,false,true,null,null,false,false,false,true,null,null,null,false,5.5,6,0,null,null,null,5.5,false,false,6,30,"PICDMT6.jpg","nicht gefunden!","x",null,{"$f":"Translation!A66","v":"Space saving with compact design"},{"$f":"Translation!A84","v":"4 level power adjustments for flexible hot water temperature choices"},{"$f":"Translation!A115","v":"Maintenance free copper tank"},{"$f":"Translation!A140","v":"Maintenance free"},{"$f":"Translation!A138","v":"Quick and easy installation"},true,true,true,null,null,null,null,null,null,null,true]
[false,999,24,222285,"IS 60 E - 2","Shower Unit",null,true,false,false,null,null,false,true,true,true,null,null,null,true,6,6.6,7.1,null,null,null,6,false,false,6,32,{"$f":"RIGHT(AG26,LEN(AG26)-44)","v":"8674561S35-45-60E-2Showerhead.jpg"},"http://www.stiebeleltronasia.com/productimg/8674561S35-45-60E-2Showerhead.jpg",{"$f":"IF(AF26=\"---\",\"\",HYPERLINK(AG26,UPPER(RIGHT(AG26,3))))","v":"JPG"},null,{"$f":"Translation!A67","v":"Chromed Shower Accessories"},{"$f":"Translation!A93","v":"Anti-scalding with Double Action Thermostat"},{"$f":"Translation!A110","v":"Works well even in low water pressure areas"},{"$f":"Translation!A115","v":"Maintenance free copper tank"},{"$f":"Translation!A128","v":"ELSD protection against Electric Shock "},true,true,true,null,null,null,null,null,null,null,true]
[false,999,25,220815,"DHM 6 220","Multipoint",null,false,false,true,null,null,false,true,true,false,null,null,null,true,6,0,0,null,null,null,6,false,false,6,32,"PIC00001985-00.jpg",{"$f":"IF(AF27=\"---\",\"---\",\"http://www.stiebel-eltron.de/ste_shared/imported/produktbilder/zoom/\"&AF27)","v":"http://www.stiebel-eltron.de/ste_shared/imported/produktbilder/zoom/PIC00001985-00.jpg"},"JPG",null,{"$f":"Translation!A74","v":"Hydraulically controlled"},{"$f":"Translation!A85","v":"Short heat-up time"},{"$f":"Translation!A98","v":"Undersink installation"},{"$f":"Translation!A112","v":"Device complete with the wall retainer integrated into the back panel"},{"$f":"Translation!A129","v":"Special perlator with flow rate limiter for m22 (fem.) and m24 (male)"},true,true,true,null,null,null,null,null,null,null,true]
[false,999,26,232217,"DDH 6","Multipoint",null,false,false,true,null,null,false,false,false,true,null,null,null,false,6,6.6,7.1,null,null,null,6,false,false,6,32,"5252197DH.jpg","http://www.stiebeleltronasia.com/productimg/5252197DH.jpg","JPG",null,{"$f":"Translation!A68","v":"3 level power adjustments"},{"$f":"Translation!A115","v":"Maintenance free copper tank"},{"$f":"Translation!A99","v":"The big and strong design knob give you easy to adjust power"},{"$f":"Translation!A113","v":"Thermal cut-off for scalding prevention"},{"$f":"Translation!A130","v":"High quality material case"},true,true,true,null,null,null,null,null,null,null,true]
[false,999,27,220881,"DHCE 6","Multipoint",null,false,false,true,null,null,false,false,false,true,null,null,null,false,6,6.6,7.1,null,null,null,6,false,false,6,32,"4372314HCE-6.gif","http://www.stiebeleltronasia.com/productimg/4372314HCE-6.gif","GIF",null,{"$f":"Translation!A69","v":"Latest German design"},{"$f":"Translation!A123","v":"Microprocessor controlled"},{"$f":"Translation!A100","v":"Thermal sensor cut-off"},{"$f":"Translation!A114","v":"Precise step temperature selection"},{"$f":"Translation!A131","v":"Splash proof IP 25"},true,true,true,null,null,null,null,null,null,null,true]
[false,999,28,"---","DHA 4/6","Multipoint",null,false,false,true,null,null,false,false,false,true,null,null,null,false,6,6.6,7.1,null,null,null,6,false,false,6,32,"5026611HA-4-6.gif","http://www.stiebeleltronasia.com/productimg/5026611HA-4-6.gif","GIF",null,{"$f":"Translation!A132","v":"Not available"},{"$f":"Translation!A132","v":"Not available"},{"$f":"Translation!A132","v":"Not available"},{"$f":"Translation!A132","v":"Not available"},{"$f":"Translation!A132","v":"Not available"},true,true,true,null,null,null,null,null,null,null,true]
[false,999,29,73480,"DHC 6","Multipoint",null,false,false,true,null,null,false,true,true,false,null,null,null,true,6,6.6,7.1,null,null,null,6,false,false,6,32,"PIC00002247-00.jpg",{"$f":"IF(AF31=\"---\",\"---\",\"http://www.stiebel-eltron.de/ste_shared/imported/produktbilder/zoom/\"&AF31)","v":"http://www.stiebel-eltron.de/ste_shared/imported/produktbilder/zoom/PIC00002247-00.jpg"},"JPG",null,{"$f":"Translation!A74","v":"Hydraulically controlled"},{"$f":"Translation!A86","v":"Metal water connections"},{"$f":"Translation!A101","v":"Power cable with safety plug"},{"$f":"Translation!A116","v":"Tubular heater system"},{"$f":"\"\"","v":""},true,true,true,null,null,null,null,null,null,null,true]
[false,999,30,231279,"DHC 6 EC","Multipoint",null,false,false,true,null,null,false,false,true,false,null,null,null,false,6,6.6,7.1,null,null,null,6,false,false,6,32,"3950439HC_EC250.png","http://www.stiebeleltronasia.com/productimg/3950439HC_EC250.png","PNG",null,{"$f":"Translation!A73","v":"No scalding and overheating with thermal sensor cut-off"},{"$f":"Translation!A89","v":"Precies step temperature selcetion"},{"$f":"Translation!A115","v":"Maintenance free copper tank"},{"$f":"Translation!A119","v":"Electronic max. temperature limitation"},{"$f":"Translation!A135","v":"On wall and concealed installation"},true,true,true,null,null,null,null,null,null,null,true]
[false,999,31,232209,"DHC 6 EL","Multipoint",null,false,false,true,null,null,false,false,true,false,null,null,null,false,6,6.6,7.1,null,null,null,6,false,false,6,32,"3950439HC_EC250.png","http://www.stiebeleltronasia.com/productimg/3950439HC_EC250.png","PNG",null,{"$f":"Translation!A73","v":"No scalding and overheating with thermal sensor cut-off"},{"$f":"Translation!A89","v":"Precies step temperature selcetion"},{"$f":"Translation!A115","v":"Maintenance free copper tank"},{"$f":"Translation!A119","v":"Electronic max. temperature limitation"},{"$f":"Translation!A135","v":"On wall and concealed installation"},true,true,true,null,null,null,null,null,null,null,true]
[false,999,32,73479,"DHC 6 U","Multipoint",null,false,false,true,null,null,false,true,true,false,null,null,null,true,6,6.6,7.1,null,null,null,6,false,false,6,32,"PIC00002246-00.jpg",{"$f":"IF(AF34=\"---\",\"---\",\"http://www.stiebel-eltron.de/ste_shared/imported/produktbilder/zoom/\"&AF34)","v":"http://www.stiebel-eltron.de/ste_shared/imported/produktbilder/zoom/PIC00002246-00.jpg"},"JPG",null,{"$f":"Translation!A74","v":"Hydraulically controlled"},{"$f":"Translation!A86","v":"Metal water connections"},{"$f":"Translation!A101","v":"Power cable with safety plug"},{"$f":"Translation!A116","v":"Tubular heater system"},{"$f":"\"\"","v":""},true,true,true,null,null,null,null,null,null,null,true]
[false,999,33,232218,"DDH 8","Multipoint",null,false,true,true,null,null,true,false,false,true,null,null,null,false,8,8.6999999999999993,9.5,null,null,null,8,false,false,10,40,"5252197DH.jpg","http://www.stiebeleltronasia.com/productimg/5252197DH.jpg","JPG",null,{"$f":"Translation!A70","v":"DDH Multi point multi function"},{"$f":"Translation!A99","v":"The big and strong design knob give you easy to adjust power"},{"$f":"Translation!A113","v":"Thermal cut-off for scalding prevention"},{"$f":"Translation!A115","v":"Maintenance free copper tank"},{"$f":"\"\"","v":""},true,true,true,null,null,null,null,null,null,null,true]
[false,999,34,"---","DHA 4/8","Multipoint",null,false,true,true,null,null,true,false,true,false,null,null,null,false,8,8.8000000000000007,9.6,null,null,null,8,false,false,10,40,"7984620HA-4-8.gif","http://www.stiebeleltronasia.com/productimg/7984620HA-4-8.gif","GIF",null,{"$f":"Translation!A132","v":"Not available"},{"$f":"Translation!A132","v":"Not available"},{"$f":"Translation!A132","v":"Not available"},{"$f":"Translation!A132","v":"Not available"},{"$f":"Translation!A132","v":"Not available"},true,true,true,null,null,null,null,null,null,null,true]
[true,35,35,73716,"DHA 4/8 L","Multipoint",null,false,true,true,null,null,true,true,false,false,null,null,null,true,8,8.8000000000000007,9.6,null,null,null,8,true,true,10,40,"PIC00002247-00.jpg",{"$f":"IF(AF37=\"---\",\"---\",\"http://www.stiebel-eltron.de/ste_shared/imported/produktbilder/zoom/\"&AF37)","v":"http://www.stiebel-eltron.de/ste_shared/imported/produktbilder/zoom/PIC00002247-00.jpg"},"JPG",null,{"$f":"Translation!A74","v":"Hydraulically controlled"},{"$f":"Translation!A86","v":"Metal water connections"},{"$f":"Translation!A101","v":"Power cable with safety plug"},{"$f":"Translation!A116","v":"Tubular heater system"},{"$f":"\"\"","v":""},true,true,true,null,null,null,null,null,null,null,true]
[true,36,36,73481,"DHC 8","Multipoint",null,false,true,true,null,null,true,true,false,false,null,null,null,true,8,8.8000000000000007,9.6,null,null,null,8,true,true,10,40,"PIC00002247-00.jpg",{"$f":"IF(AF38=\"---\",\"---\",\"http://www.stiebel-eltron.de/ste_shared/imported/produktbilder/zoom/\"&AF38)","v":"http://www.stiebel-eltron.de/ste_shared/imported/produktbilder/zoom/PIC00002247-00.jpg"},"JPG",null,{"$f":"Translation!A74","v":"Hydraulically controlled"},{"$f":"Translation!A86","v":"Metal water connections"},{"$f":"Translation!A101","v":"Power cable with safety plug"},{"$f":"Translation!A116","v":"Tubular heater system"},{"$f":"\"\"","v":""},true,true,true,null,null,null,null,null,null,null,true]
[false,999,37,232210,"DHC 8 EL","Multipoint",null,false,true,true,null,null,true,false,true,false,null,null,null,false,8,8.6999999999999993,9.5,null,null,null,8,false,false,10,40,"3950439HC_EC250.png","http://www.stiebeleltronasia.com/productimg/3950439HC_EC250.png","PNG",null,{"$f":"Translation!A73","v":"No scalding and overheating with thermal sensor cut-off"},{"$f":"Translation!A89","v":"Precies step temperature selcetion"},{"$f":"Translation!A115","v":"Maintenance free copper tank"},{"$f":"Translation!A119","v":"Electronic max. temperature limitation"},{"$f":"Translation!A135","v":"On wall and concealed installation"},true,true,true,null,null,null,null,null,null,null,true]
[false,999,38,231280,"DHC 8 EC","Multipoint",null,false,true,true,null,null,true,false,true,false,null,null,null,false,8,8.6999999999999993,9.5,null,null,null,8,false,false,10,40,"3950439HC_EC250.png","http://www.stiebeleltronasia.com/productimg/3950439HC_EC250.png","PNG",null,{"$f":"Translation!A73","v":"No scalding and overheating with thermal sensor cut-off"},{"$f":"Translation!A89","v":"Precies step temperature selcetion"},{"$f":"Translation!A115","v":"Maintenance free copper tank"},{"$f":"Translation!A119","v":"Electronic max. temperature limitation"},{"$f":"Translation!A135","v":"On wall and concealed installation"},true,true,true,null,null,null,null,null,null,null,true]
[true,39,39,224201,"DHC-E 8/10","Multipoint",null,false,true,true,null,null,true,true,false,false,null,null,null,true,8.1,8.8000000000000007,0,null,null,null,8.1,true,true,16,50,"PIC00002100-00.jpg",{"$f":"IF(AF41=\"---\",\"---\",\"http://www.stiebel-eltron.de/ste_shared/imported/produktbilder/zoom/\"&AF41)","v":"http://www.stiebel-eltron.de/ste_shared/imported/produktbilder/zoom/PIC00002100-00.jpg"},"JPG",null,{"$f":"Translation!A139","v":"Simple and secure operation"},{"$f":"Translation!A138","v":"Quick and easy installation"},{"$f":"Translation!A137","v":"Works even with low water pressure"},{"$f":"Translation!A120","v":"Use as a mains pressure appliance for several draw-off points or a shower"},{"$f":"Translation!A136","v":"EMC compliant"},true,true,true,null,null,null,null,null,null,null,true]
[false,999,40,"---","DSC 85","Shower Unit",null,true,false,false,null,null,false,true,true,true,null,null,null,true,8.5,9.3000000000000007,0,null,null,null,8.5,false,false,10,40,"dsc85.jpg","http://www.stiebel-eltron.co.za/pics/dsc85.jpg","JPG",null,{"$f":"Translation!A71","v":"For a Single Shower"},{"$f":"Translation!A87","v":"Non Pressure (Open Outlet)"},{"$f":"Translation!A102","v":"Shower Rose 5 different spray settings"},{"$f":"Translation!A117","v":"Shower Rose with Microban anti-bacterial"},{"$f":"Translation!A133","v":"Shower Rose, Riser Rail & Soap Dish included"},true,true,true,null,null,null,null,null,null,null,true]
[false,999,41,"---","DJC 85","Shower Unit",null,true,false,false,null,null,false,true,true,true,null,null,null,true,8.5,9.3000000000000007,0,null,null,null,8.5,false,false,10,40,"PICDJC85.jpg","http://img01.taobaocdn.com/bao/uploaded/i1/T1MU61FDXcXXXXXXXX_!!0-item_pic.jpg","JPG",null,{"$f":"Translation!A72","v":"Aerojet On/OFF control for a more refreshing shower experience"},{"$f":"Translation!A88","v":"Anti-scalding with Auto Thermal Cut-Off"},{"$f":"Translation!A103","v":"Anti - bacterial shower head in 5 settings"},{"$f":"Translation!A118","v":"EMC compliant and CB approved"},{"$f":"Translation!A134","v":"ELSD protection against electric shock (unit  with E)"},true,true,true,null,null,null,null,null,null,null,true]
[false,999,42,232211,"DHC 10 EL","Multipoint",null,true,true,true,null,null,true,true,true,true,null,null,null,true,9,0,0,null,null,null,9,true,false,16,50,"3950439HC_EC250.png","http://www.stiebeleltronasia.com/productimg/3950439HC_EC250.png","PNG",null,{"$f":"Translation!A73","v":"No scalding and overheating with thermal sensor cut-off"},{"$f":"Translation!A89","v":"Precies step temperature selcetion"},{"$f":"Translation!A115","v":"Maintenance free copper tank"},{"$f":"Translation!A119","v":"Electronic max. temperature limitation"},{"$f":"Translation!A135","v":"On wall and concealed installation"},true,true,true,null,null,null,null,null,null,null,true]
[false,999,43,230628,"DHC-E 12","Multipoint",null,true,true,true,null,null,true,true,false,false,null,null,null,true,10,11,0,null,null,null,10,true,false,16,60,"PIC00002100-00.jpg",{"$f":"IF(AF45=\"---\",\"---\",\"http://www.stiebel-eltron.de/ste_shared/imported/produktbilder/zoom/\"&AF45)","v":"http://www.stiebel-eltron.de/ste_shared/imported/produktbilder/zoom/PIC00002100-00.jpg"},"JPG",null,{"$f":"Translation!A139","v":"Simple and secure operation"},{"$f":"Translation!A138","v":"Quick and easy installation"},{"$f":"Translation!A137","v":"Works even with low water pressure"},{"$f":"Translation!A120","v":"Use as a mains pressure appliance for several draw-off points or a shower"},{"$f":"Translation!A136","v":"EMC compliant"},true,true,true,null,null,null,null,null,null,null,true]
[false,999,44,223420,"Tempra 12","Multipoint",null,true,true,true,null,null,true,false,true,true,null,null,null,false,10,11,12,null,null,null,10,false,false,6,60,"PIC00002093-00.jpg","http://www.stiebel-eltron.de/ste_shared/imported/produktbilder/zoom/PIC00002093-00.jpg","JPG",null,{"$f":"Translation!A75","v":"Electronic temperature control"},{"$f":"Translation!A105","v":"Temperature adjustment 30 °C to 60 °C"},{"$f":"Translation!A139","v":"Simple and secure operation"},{"$f":"Translation!A138","v":"Quick and easy installation"},{"$f":"Translation!A137","v":"Works even with low water pressure"},true,true,true,null,null,null,null,null,null,null,true]
[false,999,45,224196,"Tempra 12 plus","Multipoint",null,true,true,true,null,null,true,true,false,false,null,null,null,true,10,11,12,null,null,null,10,true,false,6,60,"PIC00002097-00.jpg","http://www.stiebel-eltron.de/ste_shared/imported/produktbilder/zoom/PIC00002097-00.jpg","JPG",null,{"$f":"Translation!A76","v":"Full electronic control with motorised valve for permanently accurate temperature selection"},{"$f":"Translation!A91","v":"Temperature selection to the exact degree with easy to read LCD"},{"$f":"Translation!A105","v":"Temperature adjustment 30 °C to 60 °C"},{"$f":"Translation!A139","v":"Simple and secure operation"},{"$f":"Translation!A138","v":"Quick and easy installation"},true,true,true,null,null,null,null,null,null,null,true]
[false,999,46,223421,"Tempra 15","Multipoint",null,true,true,true,null,null,true,false,true,true,null,null,null,false,12,13.2,14.4,null,null,null,12,false,false,"2 x 8","2 x 40","PIC00002093-00.jpg","http://www.stiebel-eltron.de/ste_shared/imported/produktbilder/zoom/PIC00002093-00.jpg","JPG",null,{"$f":"Translation!A75","v":"Electronic temperature control"},{"$f":"Translation!A105","v":"Temperature adjustment 30 °C to 60 °C"},{"$f":"Translation!A139","v":"Simple and secure operation"},{"$f":"Translation!A138","v":"Quick and easy installation"},{"$f":"Translation!A137","v":"Works even with low water pressure"},true,true,true,null,null,null,null,null,null,null,true]
[false,999,47,224197,"Tempra 15 plus","Multipoint",null,true,true,true,null,null,true,true,false,false,null,null,null,true,12,13.2,14.4,null,null,null,12,true,false,"2 x 8","2 x 40","PIC00002097-00.jpg","http://www.stiebel-eltron.de/ste_shared/imported/produktbilder/zoom/PIC00002097-00.jpg","JPG",null,{"$f":"Translation!A76","v":"Full electronic control with motorised valve for permanently accurate temperature selection"},{"$f":"Translation!A91","v":"Temperature selection to the exact degree with easy to read LCD"},{"$f":"Translation!A105","v":"Temperature adjustment 30 °C to 60 °C"},{"$f":"Translation!A139","v":"Simple and secure operation"},{"$f":"Translation!A138","v":"Quick and easy installation"},true,true,true,null,null,null,null,null,null,null,true]
[false,999,48,182137,"DHF 12 C1","Multipoint",null,true,true,true,null,null,true,true,true,true,null,null,null,true,13.2,13.2,0,null,null,null,13.2,true,false,16,60,"PIC00002264-00.jpg","http://www.stiebel-eltron.de/ste_shared/imported/produktbilder/zoom/PIC00002264-00.jpg","JPG",null,{"$f":"Translation!A74","v":"Hydraulically controlled"},{"$f":"Translation!A90","v":"Output selector for locking out the higher output stages"},{"$f":"Translation!A104","v":"The control valve largely compensates for pressure fluctuations"},{"$f":"\"\"","v":""},{"$f":"\"\"","v":""},true,true,true,null,null,null,null,null,null,null,true]
[false,999,49,223422,"Tempra 20","Multipoint",null,true,true,true,null,null,true,false,true,true,null,null,null,false,16,17.600000000000001,19.2,null,null,null,16,false,false,"2 x 8","2 x 50","PIC00002093-00.jpg","http://www.stiebel-eltron.de/ste_shared/imported/produktbilder/zoom/PIC00002093-00.jpg","JPG",null,{"$f":"Translation!A75","v":"Electronic temperature control"},{"$f":"Translation!A105","v":"Temperature adjustment 30 °C to 60 °C"},{"$f":"Translation!A139","v":"Simple and secure operation"},{"$f":"Translation!A138","v":"Quick and easy installation"},{"$f":"Translation!A137","v":"Works even with low water pressure"},true,true,true,null,null,null,null,null,null,null,true]
[false,999,50,224198,"Tempra 20 plus","Multipoint",null,true,true,true,null,null,true,true,false,false,null,null,null,true,16,17.600000000000001,19.2,null,null,null,16,true,false,"2 x 8","2 x 50","PIC00002097-00.jpg","http://www.stiebel-eltron.de/ste_shared/imported/produktbilder/zoom/PIC00002097-00.jpg","JPG",null,{"$f":"Translation!A76","v":"Full electronic control with motorised valve for permanently accurate temperature selection"},{"$f":"Translation!A91","v":"Temperature selection to the exact degree with easy to read LCD"},{"$f":"Translation!A105","v":"Temperature adjustment 30 °C to 60 °C"},{"$f":"Translation!A139","v":"Simple and secure operation"},{"$f":"Translation!A138","v":"Quick and easy installation"},true,true,true,null,null,null,null,null,null,null,true]
[false,999,51,223424,"Tempra 24","Multipoint",null,true,true,true,null,null,true,false,true,true,null,null,null,false,20,22,24,null,null,null,20,false,false,"2 x 6","2 x 60","PIC00002093-00.jpg","http://www.stiebel-eltron.de/ste_shared/imported/produktbilder/zoom/PIC00002093-00.jpg","JPG",null,{"$f":"Translation!A75","v":"Electronic temperature control"},{"$f":"Translation!A105","v":"Temperature adjustment 30 °C to 60 °C"},{"$f":"Translation!A139","v":"Simple and secure operation"},{"$f":"Translation!A138","v":"Quick and easy installation"},{"$f":"Translation!A137","v":"Works even with low water pressure"},true,true,true,null,null,null,null,null,null,null,true]
[false,999,52,224199,"Tempra 24 plus","Multipoint",null,true,true,true,null,null,true,true,false,false,null,null,null,true,20,22,24,null,null,null,20,true,false,"2 x 6","2 x 60","PIC00002097-00.jpg","http://www.stiebel-eltron.de/ste_shared/imported/produktbilder/zoom/PIC00002097-00.jpg","JPG",null,{"$f":"Translation!A76","v":"Full electronic control with motorised valve for permanently accurate temperature selection"},{"$f":"Translation!A91","v":"Temperature selection to the exact degree with easy to read LCD"},{"$f":"Translation!A105","v":"Temperature adjustment 30 °C to 60 °C"},{"$f":"Translation!A139","v":"Simple and secure operation"},{"$f":"Translation!A138","v":"Quick and easy installation"},true,true,true,null,null,null,null,null,null,null,true]
[false,999,53,223425,"Tempra 29 plus","Multipoint",null,true,true,true,null,null,true,true,true,true,null,null,null,true,24,26.4,28.8,null,null,null,24,true,false,"3 x 8","3 x 50","PIC00002097-00.jpg","http://www.stiebel-eltron.de/ste_shared/imported/produktbilder/zoom/PIC00002097-00.jpg","JPG",null,{"$f":"Translation!A76","v":"Full electronic control with motorised valve for permanently accurate temperature selection"},{"$f":"Translation!A91","v":"Temperature selection to the exact degree with easy to read LCD"},{"$f":"Translation!A105","v":"Temperature adjustment 30 °C to 60 °C"},{"$f":"Translation!A139","v":"Simple and secure operation"},{"$f":"Translation!A138","v":"Quick and easy installation"},true,true,true,null,null,null,null,null,null,null,true]
[false,999,54,2234216,"Tempra 36 plus","Multipoint",null,true,true,true,null,null,true,true,true,true,null,null,null,true,30,33,36,null,null,null,30,true,false,"3 x 6","3 x 60","PIC00002097-00.jpg","http://www.stiebel-eltron.de/ste_shared/imported/produktbilder/zoom/PIC00002097-00.jpg","JPG",null,{"$f":"Translation!A76","v":"Full electronic control with motorised valve for permanently accurate temperature selection"},{"$f":"Translation!A91","v":"Temperature selection to the exact degree with easy to read LCD"},{"$f":"Translation!A105","v":"Temperature adjustment 30 °C to 60 °C"},{"$f":"Translation!A139","v":"Simple and secure operation"},{"$f":"Translation!A138","v":"Quick and easy installation"},true,true,true,null,null,null,null,null,null,null,true]

{"sheet":"Translation","index":4,"n_rows":140,"n_cols":4,"rows_kept":140,"cut":false,"hidden":true,"merged":[]}
[]
["English/Englisch","Deutsch","English/Englisch","French"]
["DHW Unit selector","Warmwasser-Navigator","DHW Unit selector"]
["Solutions for efficient domestic hot water production","Lösungen für die effiziente Warmwasserbereitung","Solutions for efficient domestic hot water production"]
["System selection","Systemauswahl","System selection"]
["Inlet temperature","Eintrittstemperatur","Inlet temperature"]
["No. of persons","Personenzahl","No. of persons"]
["Power supply","Elektroanschluss","Power supply"]
["Draw-off point","Entnahmestellen","Draw-off point"]
["Datasheet","Produktdatenblatt","Datasheet"]
["Product sheet Accessories","Datenblatt Zubehör","Product sheet Accessories"]
["Quality standards","Qualitätsstandard","Quality standards"]
["Person","Person","Person"]
["Persons","Personen","Persons"]
["Bath tub","Badewanne","Bath tub"]
["Shower","Dusche","Shower"]
["Kitchen sink","Küchenspüle","Kitchen sink"]
["Handwash sink","Handwaschbecken","Handwash sink"]
["Features","Features","Features"]
["Technical Data","Technische Daten","Technical Data"]
["Consumption","Verbrauch","Consumption"]
["Electricity demand","Strombedarf","Electricity demand"]
["Water demand","Warmwasserbedarf","Water demand"]
["m³/a","m³/Jahr","m³/a"]
["kWh/a","kWh/Jahr","kWh/a"]
["CO2-Emissions","CO2-Emmission","CO2-Emissions"]
["kg/a","kg/Jahr","kg/a"]
["Your modifications get lost. Continue? ","Alle Änderungen werden verworfen. Fortfahren?","Your modifications get lost. Continue? "]
["Standard values","Standardwerte","Standard values"]
["€/a","€/Jahr","€/a"]
["Mat.No.","Art.Nr.","Mat.No."]
["Advanced settings","Erweiterte Einstellungen","Advanced settings"]
["Standard settings","Grundeinstellungen","Standard settings"]
["Useable time of DHW production","Nutzungsdauer Warmwasser in Wochen/Jahr","Useable time of DHW production"]
["Dispersion losses (individual supply)","Verteilungsverluste Einzelversorgung in %","Dispersion losses (individual supply)"]
["Dispersion losses (collective provision)","Verteilungsverluste Gruppenversorgung in %","Dispersion losses (collective provision)"]
["CO2-Emission electricity [g/kWh]","CO2-Emmision Strom in g/kWh","CO2-Emission electricity [g/kWh]"]
["Volume flow in liters/min","Durchfluss in Liter/min","Volume flow in liters/min"]
["Temperature to fill the bath tub?","Fülltemperatur in °C","Temperature to fill the bath tub?"]
["How often do you have a bath per week?","Anzahl Bäder pro Woche (je Person)","How often do you have a bath per week?"]
["Time of tapping in minutes","Entnahmedauer in min","Time of tapping in minutes"]
["Useable temperature in °C","Nutztemperatur in °C","Useable temperature in °C"]
["Frequency per day","Nutzungshäufigkeit pro Tag","Frequency per day"]
["Frequency per day (per person)","Nutzungshäufigkeit pro Tag (je Person)","Frequency per day (per person)"]
["Shower temperature in °C","Duschtemperatur in °C","Shower temperature in °C"]
["Showers per week (per person)","Anzahl Duschen pro Woche (je Person)","Showers per week (per person)"]
["Average shower time in minutes","Durchschnittliche Duschdauer in Minuten","Average shower time in minutes"]
["| Save & back","| Speichern und zurück","| Save & back"]
["| Standard settings","| Standardwerte","| Standard settings"]
["Required hot water output","Warmwasserleistung","Required hot water output"]
["Power device","Leistung Gerät","Power device"]
["Rated Current","Absicherung","Rated Current"]
["Cable cross-section","Leitungsquerschnitt","Cable cross-section"]
["Technical data","Technische Daten","Technical data"]
["Consumption","Verbrauch","Consumption"]
["Error warm water Navigator Report","Fehler Warmwasser-Navigator melden","Error warm water Navigator Report"]
["Error Description","Fehlerbeschreibung","Error Description"]
["Maximum flow","Max. Durchfluss","Maximum flow"]
["Outlet temperature","Austrittstemperatur","Outlet temperature"]
["The worlds first instant hybrid water heater ","The worlds first instant hybrid water heater ","The worlds first instant hybrid water heater "]
["Step less Temperature Control Knob","Step less Temperature Control Knob","Step less Temperature Control Knob"]
["Luxury design","Luxury design","Luxury design"]
["Lage coloured LCD display","Lage coloured LCD display","Lage coloured LCD display"]
["Awarded German design ","Awarded German design ","Awarded German design "]
["Electronically controlled mini instantaneous water heater for supplying a basin","Electronically controlled mini instantaneous water heater for supplying a basin","Electronically controlled mini instantaneous water heater for supplying a basin"]
["Space saving with compact design","Space saving with compact design","Space saving with compact design"]
["Chromed Shower Accessories","Chromed Shower Accessories","Chromed Shower Accessories"]
["3 level power adjustments","3 level power adjustments","3 level power adjustments"]
["Latest German design","Latest German design","Latest German design"]
["DDH Multi point multi function","DDH Multi point multi function","DDH Multi point multi function"]
["For a Single Shower","For a Single Shower","For a Single Shower"]
["Aerojet On/OFF control for a more refreshing shower experience","Aerojet On/OFF control for a more refreshing shower experience","Aerojet On/OFF control for a more refreshing shower experience"]
["No scalding and overheating with thermal sensor cut-off","No scalding and overheating with thermal sensor cut-off","No scalding and overheating with thermal sensor cut-off"]
["Hydraulically controlled","Hydraulically controlled","Hydraulically controlled"]
["Electronic temperature control","Electronic temperature control","Electronic temperature control"]
["Full electronic control with motorised valve for permanently accurate temperature selection","Full electronic control with motorised valve for permanently accurate temperature selection","Full electronic control with motorised valve for permanently accurate temperature selection"]
["Up to 40% of water and energy saving","Up to 40% of water and energy saving","Up to 40% of water and energy saving"]
["Anti-scalding with Action Thermostat ","Anti-scalding with Action Thermostat ","Anti-scalding with Action Thermostat "]
["Aero Jet ON/OFF control","Aero Jet ON/OFF control","Aero Jet ON/OFF control"]
["ELCB protection against Electric Shock","ELCB protection against Electric Shock","ELCB protection against Electric Shock"]
["ELCB protection against electricity leakage","ELCB protection against electricity leakage","ELCB protection against electricity leakage"]
["Built in Aero Jet","Built in Aero Jet","Built in Aero Jet"]
["Constant outlet temperature up to the output limit thanks to electronics","Constant outlet temperature up to the output limit thanks to electronics","Constant outlet temperature up to the output limit thanks to electronics"]
["4 level power adjustments for flexible hot water temperature choices","4 level power adjustments for flexible hot water temperature choices","4 level power adjustments for flexible hot water temperature choices"]
["Short heat-up time","Short heat-up time","Short heat-up time"]
["Metal water connections","Metal water connections","Metal water connections"]
["Non Pressure (Open Outlet)","Non Pressure (Open Outlet)","Non Pressure (Open Outlet)"]
["Anti-scalding with Auto Thermal Cut-Off","Anti-scalding with Auto Thermal Cut-Off","Anti-scalding with Auto Thermal Cut-Off"]
["Precies step temperature selcetion","Precies step temperature selcetion","Precies step temperature selcetion"]
["Output selector for locking out the higher output stages","Output selector for locking out the higher output stages","Output selector for locking out the higher output stages"]
["Temperature selection to the exact degree with easy to read LCD","Temperature selection to the exact degree with easy to read LCD","Temperature selection to the exact degree with easy to read LCD"]
["Patented Aerojet for saving water and electricity ","Patented Aerojet for saving water and electricity ","Patented Aerojet for saving water and electricity "]
["Anti-scalding with Double Action Thermostat","Anti-scalding with Double Action Thermostat","Anti-scalding with Double Action Thermostat"]
["Multi color display","Multi color display","Multi color display"]
["Easy and save to operate","Easy and save to operate","Easy and save to operate"]
["Tank made from X-tra Reinforced Polyamide","Tank made from X-tra Reinforced Polyamide","Tank made from X-tra Reinforced Polyamide"]
["Temperature can be selected internally from approx. 30 to 50 °C","Temperature can be selected internally from approx. 30 to 50 °C","Temperature can be selected internally from approx. 30 to 50 °C"]
["Undersink installation","Undersink installation","Undersink installation"]
["The big and strong design knob give you easy to adjust power","The big and strong design knob give you easy to adjust power","The big and strong design knob give you easy to adjust power"]
["Thermal sensor cut-off","Thermal sensor cut-off","Thermal sensor cut-off"]
["Power cable with safety plug","Power cable with safety plug","Power cable with safety plug"]
["Shower Rose 5 different spray settings","Shower Rose 5 different spray settings","Shower Rose 5 different spray settings"]
["Anti - bacterial shower head in 5 settings","Anti - bacterial shower head in 5 settings","Anti - bacterial shower head in 5 settings"]
["The control valve largely compensates for pressure fluctuations","The control valve largely compensates for pressure fluctuations","The control valve largely compensates for pressure fluctuations"]
["Temperature adjustment 30 °C to 60 °C","Temperature adjustment 30 °C to 60 °C","Temperature adjustment 30 °C to 60 °C"]
[" Exact & easy temperature control "," Exact & easy temperature control "," Exact & easy temperature control "]
["Exact and quick temperature selection","Exact and quick temperature selection","Exact and quick temperature selection"]
["Rust-free copper tank","Rust-free copper tank","Rust-free copper tank"]
["5 in 1 chrome accessories","5 in 1 chrome accessories","5 in 1 chrome accessories"]
["Works well even in low water pressure areas","Works well even in low water pressure areas","Works well even in low water pressure areas"]
["Flow rate can be selected internally","Flow rate can be selected internally","Flow rate can be selected internally"]
["Device complete with the wall retainer integrated into the back panel","Device complete with the wall retainer integrated into the back panel","Device complete with the wall retainer integrated into the back panel"]
["Thermal cut-off for scalding prevention","Thermal cut-off for scalding prevention","Thermal cut-off for scalding prevention"]
["Precise step temperature selection","Precise step temperature selection","Precise step temperature selection"]
["Maintenance free copper tank","Maintenance free copper tank","Maintenance free copper tank"]
["Tubular heater system","Tubular heater system","Tubular heater system"]
["Shower Rose with Microban anti-bacterial","Shower Rose with Microban anti-bacterial","Shower Rose with Microban anti-bacterial"]
["EMC compliant and CB approved","EMC compliant and CB approved","EMC compliant and CB approved"]
["Electronic max. temperature limitation","Electronic max. temperature limitation","Electronic max. temperature limitation"]
["Use as a mains pressure appliance for several draw-off points or a shower","Use as a mains pressure appliance for several draw-off points or a shower","Use as a mains pressure appliance for several draw-off points or a shower"]
["Designed and manufactured according to CB standard","Designed and manufactured according to CB standard","Designed and manufactured according to CB standard"]
["Electricity Surge Protection","Electricity Surge Protection","Electricity Surge Protection"]
["Microprocessor controlled","Microprocessor controlled","Microprocessor controlled"]
["Microcontroller temperature stabilizer","Microcontroller temperature stabilizer","Microcontroller temperature stabilizer"]
["Chromed shower head in 5 settings","Chromed shower head in 5 settings","Chromed shower head in 5 settings"]
["Effective bare wire heating system","Effective bare wire heating system","Effective bare wire heating system"]
["Easy installation","Easy installation","Easy installation"]
["ELSD protection against Electric Shock ","ELSD protection against Electric Shock ","ELSD protection against Electric Shock "]
["Special perlator with flow rate limiter for m22 (fem.) and m24 (male)","Special perlator with flow rate limiter for m22 (fem.) and m24 (male)","Special perlator with flow rate limiter for m22 (fem.) and m24 (male)"]
["High quality material case","High quality material case","High quality material case"]
["Splash proof IP 25","Splash proof IP 25","Splash proof IP 25"]
["Not available","Not available","Not available"]
["Shower Rose, Riser Rail & Soap Dish included","Shower Rose, Riser Rail & Soap Dish included","Shower Rose, Riser Rail & Soap Dish included"]
["ELSD protection against electric shock (unit  with E)","ELSD protection against electric shock (unit  with E)","ELSD protection against electric shock (unit  with E)"]
["On wall and concealed installation","On wall and concealed installation","On wall and concealed installation"]
["EMC compliant","EMC compliant","EMC compliant"]
["Works even with low water pressure","Works even with low water pressure","Works even with low water pressure"]
["Quick and easy installation","Quick and easy installation","Quick and easy installation"]
["Simple and secure operation","Simple and secure operation","Simple and secure operation"]
["Maintenance free","Maintenance free","Maintenance free"]

{"sheet":"BilderGeraete","index":5,"n_rows":56,"n_cols":4,"rows_kept":56,"cut":false,"hidden":true,"merged":[]}
[]
["Index","ArtikelNr","Bezeichnung","Art"]
[1,"---","DJ 30 E - 2","Shower Unit"]
[2,231001,"DEM 3","Multipoint"]
[3,220813,"DHM 3","Multipoint"]
[4,222296,"AQ 35 E - 2","Shower Unit"]
[5,222290,"IJ 35 E","Shower Unit"]
[6,222358,"IL 35 EC","Shower Unit"]
[7,222283,"IS 35 E - 2","Shower Unit"]
[8,"---","IP 35 EC","Shower Unit"]
[9,"---","WS 35 E","Shower Unit"]
[10,230997,"XG 35 EC","Shower Unit"]
[11,231002,"DEM 4","Multipoint"]
[12,220814,"DHM 4","Multipoint"]
[13,73715,"DHC 4","Multipoint"]
[14,222297,"AQ 45 E - 2","Shower Unit"]
[15,222291,"IJ 45 E","Shower Unit"]
[16,222359,"IL 45 EC","Shower Unit"]
[17,222284,"IS 45 E - 2","Shower Unit"]
[18,"---","IP 45EC","Shower Unit"]
[19,null,"WS 45 E","Shower Unit"]
[20,230998,"XG 45 EC","Shower Unit"]
[21,231215,"DEM 6 ","Multipoint"]
[22,185473,"DHM 6","Multipoint"]
[23,"---","DMT 6","Multipoint"]
[24,222285,"IS 60 E - 2","Shower Unit"]
[25,220815,"DHM 6 220","Multipoint"]
[26,232217,"DDH 6","Multipoint"]
[27,220881,"DHCE 6","Multipoint"]
[28,"---","DHA 4/6","Multipoint"]
[29,73480,"DHC 6","Multipoint"]
[30,231279,"DHC 6 EC","Multipoint"]
[31,232209,"DHC 6 EL","Multipoint"]
[32,73479,"DHC 6 U","Multipoint"]
[33,232218,"DDH 8","Multipoint"]
[34,"---","DHA 4/8","Multipoint"]
[35,73716,"DHA 4/8 L","Multipoint"]
[36,73481,"DHC 8","Multipoint"]
[37,232210,"DHC 8 EL","Multipoint"]
[38,231280,"DHC 8 EC","Multipoint"]
[39,224201,"DHC-E 8/10","Multipoint"]
[40,"---","DSC 85","Shower Unit"]
[41,"---","DJC 85","Shower Unit"]
[42,232211,"DHC 10 EL","Multipoint"]
[43,230628,"DHC-E 12","Multipoint"]
[44,223420,"Tempra 12","Multipoint"]
[45,224196,"Tempra 12 plus","Multipoint"]
[46,223421,"Tempra 15","Multipoint"]
[47,224197,"Tempra 15 plus","Multipoint"]
[48,182137,"DHF 12 C1","Multipoint"]
[49,223422,"Tempra 20","Multipoint"]
[50,224198,"Tempra 20 plus","Multipoint"]
[51,223424,"Tempra 24","Multipoint"]
[52,224199,"Tempra 24 plus","Multipoint"]
[53,223425,"Tempra 29 plus","Multipoint"]
[54,2234216,"Tempra 36 plus","Multipoint"]